Workbook

Sheet Main Dashboard
C2: Member Service Financial Budgeting Tools | H2: 2023-10-26
B5: Service Name: | E5: Weeks in Period:
B7: For Period / FY Beginning: | E7: Term Weeks in Period:
B10: EMPLOYEE DATA:
B16: SERVICE PROFILE DATA:
B22: SUMMARY DASHBOARD: | F22: ANNUAL BUDGETS:
D23: Head Count | E23: Ann. Salary Cost
B24: Employees: | C24: Teachers | D24: =COUNTA(Teachers!$C$9:$H$9) -> 0 | E24: =Teachers!$C$40 -> 0
C25: Diploma Educators | D25: =COUNTA('Diploma Educators'!$C$9:$H$9) -> 0 | E25: ='Diploma Educators'!$C$43 -> 0
C26: Cert III Educators | D26: =COUNTA('Cert III Educators'!$C$9:$H$9) -> 0 | E26: ='Cert III Educators'!$C$43 -> 0
C27: Activity Group Leaders | D27: =COUNTA('Activity Group Leaders'!$C$9:$H$9) -> 0 | E27: ='Activity Group Leaders'!$C$42 -> 0
C28: Other Staff | D28: =COUNTA('Other Staff'!$C$9:$H$9) -> 0 | E28: ='Other Staff'!$C$35 -> 0
B30: Financials: | C30: All Programs | D30: 4YO | E30: 3YO | F30: All Other
B31: Surplus / Deficit: | C31: =Budget!E$68 -> 0 | D31: =Budget!F$68 -> 0 | E31: =Budget!G$68 -> 0 | F31: =Budget!$H$68+Budget!$I$68+Budget!$J$68 -> 0
B32: Income: | C32: =Budget!E$29 -> 0 | D32: =Budget!F$29 -> 0 | E32: =Budget!G$29 -> 0 | F32: =Budget!$H$29+Budget!$I$29+Budget!$J$29 -> 0
B33: Expenses: | C33: =Budget!E$66 -> 0 | D33: =Budget!F$66 -> 0 | E33: =Budget!G$66 -> 0 | F33: =Budget!$H$66+Budget!$I$66+Budget!$J$66 -> 0
B34: Staff Costs: | C34: =Budget!E$32+Budget!E$33 -> 0 | D34: =Budget!F$32+Budget!F$33 -> 0 | E34: =Budget!G$32+Budget!G$33 -> 0 | F34: =SUM(Budget!$H$32:$J$33) -> 0
B35: Other Costs: | C35: =Budget!E$66-Budget!E$33-Budget!E$32 -> 0 | D35: =Budget!F$66-Budget!F$33-Budget!F$32 -> 0 | E35: =Budget!G$66-Budget!G$33-Budget!G$32 -> 0 | F35: =Budget!$H$66+Budget!$I$66+Budget!$J$66-Budget!$H$32-Budget!$I$32-Budget!$J$32-Budget!$H$33-Budget!$I$33-Budget!$J$33 -> 0

Sheet AS Reference Sheet (hidden)
A1: Sheet | B1: Reference | C1: Type | D1: Value
A2: Teachers | B2: Row 16 | C2: Criteria Value | D2: 25.5 | E2: Max Contact Hours for Teachers
A3: Teachers | B3: Row 16 | C3: Output Value | D3: 38 | E3: Max Hours per week
A4: Teachers | B4: Row 16 | C4: Calculation Value | D4: 4
A5: Teachers | B5: Row 16 | C5: Calculation Value | D5: 60 | E5: Hour value
A6: Teacher Index | B6: Row 10 | C6: Calculation Value | D6: 765/38 | E6: Max Work Load Index for Teachers / Max Hours per Week
A7: Diploma Educators | B7: Row 17 | C7: Criteria Value | D7: 30.4 | E7: Max Contact Hours for Diploma Educators
A8: Diploma Educators | B8: Row 17 | C8: Output Value | D8: 38 | E8: Max Hours per week
A9: Diploma Educators | B9: Row 17 | C9: Calculation Value | D9: 4
A10: Diploma Educators | B10: Row 17 | C10: Calculation Value | D10: 60 | E10: Hour value
A11: Cert III Educators | B11: Row 17 | C11: Criteria Value | D11: 30.4 | E11: Max Contact Hours for Cert III Educators
A12: Cert III Educators | B12: Row 17 | C12: Criteria Value | D12: 38 | E12: Max Hours per week
A13: Cert III Educators | B13: Row 17 | C13: Calculation Value | D13: 4
A14: Cert III Educators | B14: Row 17 | C14: Calculation Value | D14: 60 | E14: Hour value
A15: Activity Group Leaders | B15: Row 16 | C15: Criteria Value | D15: 25.5 | E15: Max Contact Hours for Activity Group Leaders
A16: Activity Group Leaders | B16: Row 16 | C16: Output Value | D16: 38 | E16: Max Hours per week
A17: Activity Group Leaders | B17: Row 16 | C17: Calculation Value | D17: 4
A18: Activity Group Leaders | B18: Row 16 | C18: Calculation Value | D18: 60 | E18: Hour value
A19: Other Staff | B19: Row 17 | C19: Criteria Value | D19: 25.5 | E19: Max Contact Hours for Other Staff
A20: Other Staff | B20: Row 17 | C20: Output Value | D20: 38 | E20: Max Hours per week
A21: Other Staff | B21: Row 17 | C21: Calculation Value | D21: 4
A22: Other Staff | B22: Row 17 | C22: Calculation Value | D22: 60 | E22: Hour value
A23: Profile | B23: Columns J/K/L/N/O | C23: Calculation Value | D23: 4
A24: Profile | B24: Column Q | C24: Criteria Value | D24: 15 | E24: Department Funded Hours
A25: Profile | B25: Column Q | C25: Calculation Value | D25: 15 | E25: Department Funded Hours
A26: Profile | B26: Cell A51 | C26: Output String | D26: CHECK: Total # of children by teacher category above is different from total children enrolled input in cells D10 to D20 above
A27: Profile | B27: Cell E55 | C27: Criteria Value | D27: 15 | E27: Department Funded Hours 4 YO
A28: Profile | B28: Cell E56 | C28: Criteria Value | D28: 5 | E28: Department Funded Hours 3 YO

Sheet Teachers
C2: Annual Salary Costs: TEACHERS | H2: 2023-10-26
B5: Member / Service Name: | C5: ='Main Dashboard'!$C$5 -> 0 | E5: Weeks in Period: | F5: ='Main Dashboard'!$F$5 -> 0
B7: For Period / FY Beginning: | C7: ='Main Dashboard'!$C$7 -> 00:00:00 | E7: Term Weeks in Period: | F7: ='Main Dashboard'!$F$7 -> 0
B9: Teacher (Name):
B10: Hourly Rate
B11: Increment Date
B12: New Hourly Rate
B13: Contact Hours
B14: Four Year Old
B15: Three Year Old
B16: Other
B17: Minimum Paid Hours | C17: =IF(SUM(C$14:C$16)>=25.5,38,ROUNDUP(4*(SUM(C$14:C$16))*(60+$C$32)/60,0)/4) -> 0 | D17: 0 | E17: 0 | F17: 0 | G17: 0 | H17: 0
B18: Weekly Paid Hours
B19: Additional Non-Teaching Time | C19: =C$18-C$17 -> 0 | D19: 0 | E19: 0 | F19: 0 | G19: 0 | H19: 0
B20: Salary
B21: Weeks Before Increment | C21: =IF(C$11="",0,ROUNDUP((C$11-$C$7)/7,0)) -> 0 | D21: 0 | E21: 0 | F21: 0 | G21: 0 | H21: 0
B22: Weekly Salary | C22: =ROUND(C$18*C$10,2) -> 0 | D22: 0 | E22: 0 | F22: 0 | G22: 0 | H22: 0
B23: Weeks After Increment | C23: =IF(C$21=0,$F$5,$F$5-C$21) -> 0 | D23: 0 | E23: 0 | F23: 0 | G23: 0 | H23: 0
B24: Weekly Salary | C24: =ROUND(C$18*C$12,2) -> 0 | D24: 0 | E24: 0 | F24: 0 | G24: 0 | H24: 0
B25: Allowance
B26: Protective Clothing Rate (Per Day)
B27: Days Per Week Paid
B28: Teacher In Charge Rate (Per Week)
B29: Teacher In Charge Wage | C29: =C$28*$F$5 -> 0 | D29: 0 | E29: 0 | F29: 0 | G29: 0 | H29: 0
B30: Allowances Per Year | C30: =ROUNDUP(($C$26*C$27*$F$7)+C$29,0) -> 0 | D30: 0 | E30: 0 | F30: 0 | G30: 0 | H30: 0
B32: Minimum Non Teaching Time: | C32: 30 | D32: minutes for each hour of teaching.
B34: Subtotals
B35: Annual Salary | C35: =ROUNDUP(C$21*C$22+C$23*C$24+C$24*0.7,0)+C$30 -> 0 | D35: 0 | E35: 0 | F35: 0 | G35: 0 | H35: 0
B36: Four Year Old Component | C36: =IFERROR(IF((C$18=0),0,ROUND(C$35*C$14/(SUM(C$14:C$16)),0)),0) -> 0 | D36: 0 | E36: 0 | F36: 0 | G36: 0 | H36: 0
B37: Three Year Old Component | C37: =IFERROR(IF((C$18=0),0,ROUND(C$35*C$15/(SUM(C$14:C$16)),0)),0) -> 0 | D37: 0 | E37: 0 | F37: 0 | G37: 0 | H37: 0
B38: Other Component | C38: =C$35-C$36-C$37 -> 0 | D38: 0 | E38: 0 | F38: 0 | G38: 0 | H38: 0
B40: Total Teacher Salaries | C40: =SUM($C$35:$H$35) -> 0
B42: 4 YO Teacher Salaries | C42: =SUM($C36:$H36) -> 0
B43: 3 YO Teacher Salaries | C43: =SUM($C37:$H37) -> 0
B44: Other Teacher Salaries | C44: =SUM($C38:$H38) -> 0

Sheet Diploma Educators
C2: Annual Salary Costs: Diploma Educator | H2: 2023-10-26
B5: Member / Service Name: | C5: ='Main Dashboard'!$C$5 -> 0 | E5: Weeks in Period: | F5: ='Main Dashboard'!$F$5 -> 0
B7: For Period / FY Beginning: | C7: ='Main Dashboard'!$C$7 -> 00:00:00 | E7: Term Weeks in Period: | F7: ='Main Dashboard'!$F$7 -> 0
B9: Diploma Educator (Name):
B10: Hourly Rate
B11: Increment Date
B12: New Hourly Rate
B13: Contact Hours
B14: Four Year Old
B15: Three Year Old
B16: Other
B17: Lunch Cover
B18: Minimum Paid Hours | C18: =IF(SUM(C$14:C$16)>=30.4,38,ROUNDUP(4*(SUM(C$14:C$16))*(60+$C$35)/60,0)/4)+C17 -> 0 | D18: 0 | E18: 0 | F18: 0 | G18: 0 | H18: 0
B19: Weekly Paid Hours
B20: Additional Non-Teaching Time | C20: =C$19-C$18 -> 0 | D20: 0 | E20: 0 | F20: 0 | G20: 0 | H20: 0
B21: Salary
B22: Weeks Before Increment | C22: =IF(C$11="",0,ROUNDUP((C$11-$C$7)/7,0)) -> 0 | D22: 0 | E22: 0 | F22: 0 | G22: 0 | H22: 0
B23: Weekly Salary | C23: =ROUND(C$19*C$10,2) -> 0 | D23: 0 | E23: 0 | F23: 0 | G23: 0 | H23: 0
B24: Weeks After Increment | C24: =IF(C$22=0,$F$5,$F$5-C$22) -> 0 | D24: 0 | E24: 0 | F24: 0 | G24: 0 | H24: 0
B25: Weekly Salary | C25: =ROUND(C$19*C$12,2) -> 0 | D25: 0 | E25: 0 | F25: 0 | G25: 0 | H25: 0
B26: Allowance
B27: Protective Clothing Rate (Per Day)
B28: Days Per Week Paid
B29: Firt Aid Rate (Per Day)
B30: Days Per Week Paid
B31: Toilet Cleaning Rate (Per Day)
B32: Days Per Week Paid
B33: Allowances Per Year | C33: =ROUNDUP((($C$27*C$28)+($C$29*C$30)+($C$31*C$32))*$F$7,0) -> 0 | D33: 0 | E33: 0 | F33: 0 | G33: 0 | H33: 0
B35: Minimum Non Teaching Time: | C35: 15 | D35: minutes for each hour of teaching. (applies to all teachers / educators on this page)
B37: Subtotals
B38: Annual Salary | C38: =ROUNDUP(C$22*C$23+C$24*C$25+C$25*0.7,0)+C$33 -> 0 | D38: 0 | E38: 0 | F38: 0 | G38: 0 | H38: 0
B39: Four Year Old Component | C39: =IFERROR(IF((C$19=0),0,ROUND(C$38*C$14/(SUM(C$14:C$16)),0)),0) -> 0 | D39: 0 | E39: 0 | F39: 0 | G39: 0 | H39: 0
B40: Three Year Old Component | C40: =IFERROR(IF((C$19=0),0,ROUND(C$38*C$15/(SUM(C$14:C$16)),0)),0) -> 0 | D40: 0 | E40: 0 | F40: 0 | G40: 0 | H40: 0
B41: Other Component | C41: =C$38-C$39-C$40 -> 0 | D41: 0 | E41: 0 | F41: 0 | G41: 0 | H41: 0
B43: Total Diploma Educator Salaries | C43: =SUM($C$38:$H$38) -> 0
B45: 4 YO Diploma Educator Salaries | C45: =SUM($C39:$H39) -> 0
B46: 3 YO Diploma Educator Salaries | C46: =SUM($C40:$H40) -> 0
B47: Other Diploma Educator Salaries | C47: =SUM($C41:$H41) -> 0

Sheet Teacher Index
C2: Teacher Index | H2: 2023-10-26
B5: Member / Service Name: | C5: ='Main Dashboard'!$C$5 -> 0 | E5: Weeks in Period: | F5: ='Main Dashboard'!$F$5 -> 0
B7: For Period / FY Beginning: | C7: ='Main Dashboard'!$C$7 -> 00:00:00 | E7: Term Weeks in Period: | F7: ='Main Dashboard'!$F$7 -> 0
B9: Teachers | C9: =Teachers!C$9 -> 0 | D9: =Teachers!D$9 -> 0 | E9: =Teachers!E$9 -> 0 | F9: =Teachers!F$9 -> 0 | G9: =Teachers!G$9 -> 0 | H9: =Teachers!H$9 -> 0
B10: Total Weekly Hours | C10: =Teachers!C$18 -> 0 | D10: =Teachers!D$18 -> 0 | E10: =Teachers!E$18 -> 0 | F10: =Teachers!F$18 -> 0 | G10: =Teachers!G$18 -> 0 | H10: =Teachers!H$18 -> 0
B11: Maximum Workload Index | C11: =ROUNDUP(C$10*765/38,0) -> 0 | D11: 0 | E11: 0 | F11: 0 | G11: 0 | H11: 0
B13: Hours, Session 1
B14: Children, Session 1
B16: Hours, Session 2
B17: Children, Session 2
B19: Hours, Session 3
B20: Children, Session 3
B22: Hours, Session 4
B23: Children, Session 4
B25: Hours, Session 5
B26: Children, Session 5
B28: Hours, Session 6
B29: Children, Session 6
B31: Hours, Session 7
B32: Children, Session 7
B34: Hours, Session 8
B35: Children, Session 8
B36: Teacher Index | C36: =C$13*C$14+C$16*C$17+C$19*C$20+C$22*C$23+C$25*C$26+C$28*C$29+C$31*C$32+C$34*C$35 -> 0 | D36: 0 | E36: 0 | F36: 0 | G36: 0 | H36: 0
C37: =IF((C$11-C$36)<0,"Index is exceeded"," ") -> 

Sheet Cert III Educators
C2: Annual Salary Costs: Cert III Educator | H2: 2023-10-26
B5: Member / Service Name: | C5: ='Main Dashboard'!$C$5 -> 0 | E5: Weeks in Period: | F5: ='Main Dashboard'!$F$5 -> 0
B7: For Period / FY Beginning: | C7: ='Main Dashboard'!$C$7 -> 00:00:00 | E7: Term Weeks in Period: | F7: ='Main Dashboard'!$F$7 -> 0
B9: Cert III Educator (Name):
B10: Hourly Rate
B11: Increment Date
B12: New Hourly Rate
B13: Contact Hours
B14: Four Year Old
B15: Three Year Old
B16: Other
B17: Lunch Cover
B18: Minimum Paid Hours | C18: =IF((SUM(C$14:C$16))>=30.4,38,ROUNDUP(4*(SUM(C$14:C$16))*(60+$C$35)/60,0)/4)+C$17 -> 0 | D18: 0 | E18: 0 | F18: 0 | G18: 0 | H18: 0
B19: Weekly Paid Hours
B20: Additional Non-Teaching Time | C20: =C$19-C$18 -> 0 | D20: 0 | E20: 0 | F20: 0 | G20: 0 | H20: 0
B21: Salary
B22: Weeks Before Increment | C22: =IF(C$11="",0,ROUNDUP((C$11-$C$7)/7,0)) -> 0 | D22: 0 | E22: 0 | F22: 0 | G22: 0 | H22: 0
B23: Weekly Salary | C23: =ROUND(C$19*C$10,2) -> 0 | D23: 0 | E23: 0 | F23: 0 | G23: 0 | H23: 0
B24: Weeks After Increment | C24: =IF(C$22=0,$F$5,$F$5-C$22) -> 0 | D24: 0 | E24: 0 | F24: 0 | G24: 0 | H24: 0
B25: Weekly Salary | C25: =ROUND(C$19*C$12,2) -> 0 | D25: 0 | E25: 0 | F25: 0 | G25: 0 | H25: 0
B26: Allowance
B27: Protective Clothing Rate (Per Day)
B28: Days Per Week Paid
B29: Firt Aid Rate (Per Day)
B30: Days Per Week Paid
B31: Toilet Cleaning Rate (Per Day)
B32: Days Per Week Paid
B33: Allowances Per Year | C33: =ROUNDUP((($C$27*C$28)+($C$29*C$30)+($C$31*C$32))*$F$7,0) -> 0 | D33: 0 | E33: 0 | F33: 0 | G33: 0 | H33: 0
B35: Minimum Non Teaching Time: | C35: 15 | D35: minutes for each hour of teaching. (applies to all teachers / educators on this page)
B37: Subtotals
B38: Annual Salary | C38: =ROUNDUP(C$22*C$23+C$24*C$25+C$25*0.7,0)+C$33 -> 0 | D38: 0 | E38: 0 | F38: 0 | G38: 0 | H38: 0
B39: Four Year Old Component | C39: =IFERROR(IF((C$19=0),0,ROUND(C$38*C$14/(SUM(C$14:C$16)),0)),0) -> 0 | D39: 0 | E39: 0 | F39: 0 | G39: 0 | H39: 0
B40: Three Year Old Component | C40: =IFERROR(IF((C$19=0),0,ROUND(C$38*C$15/(SUM(C$14:C$16)),0)),0) -> 0 | D40: 0 | E40: 0 | F40: 0 | G40: 0 | H40: 0
B41: Other Component | C41: =C$38-C$39-C$40 -> 0 | D41: 0 | E41: 0 | F41: 0 | G41: 0 | H41: 0
B43: Total Cert Iii Educator Salaries | C43: =SUM($C$38:$H$38) -> 0
B45: 4 YO Cert Iii Educator Salaries | C45: =SUM($C39:$H39) -> 0
B46: 3 YO Cert Iii Educator Salaries | C46: =SUM($C40:$H40) -> 0
B47: Other Cert Iii Educator Salaries | C47: =SUM($C41:$H41) -> 0

Sheet Activity Group Leaders
C2: Annual Salary Costs: Activity Group Leaders | H2: 2023-10-26
B5: Member / Service Name: | C5: ='Main Dashboard'!$C$5 -> 0 | E5: Weeks in Period: | F5: ='Main Dashboard'!$F$5 -> 0
B7: For Period / FY Beginning: | C7: ='Main Dashboard'!$C$7 -> 00:00:00 | E7: Term Weeks in Period: | F7: ='Main Dashboard'!$F$7 -> 0
B9: Act. Grp. Leaders (Name):
B10: Hourly Rate
B11: Increment Date
B12: New Hourly Rate
B13: Contact Hours
B14: Four Year Old
B15: Three Year Old
B16: Other
B17: Minimum Paid Hours | C17: =IF((SUM(C$14:C$16))>=25.5,38,ROUNDUP(4*(SUM(C$14:C$16))*(60+$C$34)/60,0)/4) -> 0 | D17: 0 | E17: 0 | F17: 0 | G17: 0 | H17: 0
B18: Weekly Paid Hours
B19: Additional Non-Teaching Time | C19: =C$18-C$17 -> 0 | D19: 0 | E19: 0 | F19: 0 | G19: 0 | H19: 0
B20: Salary
B21: Weeks Before Increment | C21: =IF(C$11="",0,ROUNDUP((C$11-$C$7)/7,0)) -> 0 | D21: 0 | E21: 0 | F21: 0 | G21: 0 | H21: 0
B22: Weekly Salary | C22: =ROUND(C$18*C$10,2) -> 0 | D22: 0 | E22: 0 | F22: 0 | G22: 0 | H22: 0
B23: Weeks After Increment | C23: =IF(C$21=0,$F$5,$F$5-C$21) -> 0 | D23: 0 | E23: 0 | F23: 0 | G23: 0 | H23: 0
B24: Weekly Salary | C24: =ROUND(C$18*C$12,2) -> 0 | D24: 0 | E24: 0 | F24: 0 | G24: 0 | H24: 0
B25: Allowance
B26: Protective Clothing Rate (Per Day)
B27: Days Per Week Paid
B28: Firt Aid Rate (Per Day)
B29: Days Per Week Paid
B30: Toilet Cleaning Rate (Per Day)
B31: Days Per Week Paid
B32: Allowances Per Year | C32: =ROUNDUP((($C$26*C$27)+($C$28*C$29)+($C$30*C$31))*$F$7,0) -> 0 | D32: 0 | E32: 0 | F32: 0 | G32: 0 | H32: 0
B34: Minimum Non Teaching Time: | C34: 20 | D34: minutes for each hour of teaching. (applies to all teachers / educators on this page)
B36: Subtotals
B37: Annual Salary | C37: =ROUNDUP(C$21*C$22+C$23*C$24+C$24*0.7,0)+C$32 -> 0 | D37: 0 | E37: 0 | F37: 0 | G37: 0 | H37: 0
B38: Four Year Old Component | C38: =IFERROR(IF((C$18=0),0,ROUND(C$37*C$14/(SUM(C$14:C$16)),0)),0) -> 0 | D38: 0 | E38: 0 | F38: 0 | G38: 0 | H38: 0
B39: Three Year Old Component | C39: =IFERROR(IF((C$18=0),0,ROUND(C$37*C$15/(SUM(C$14:C$16)),0)),0) -> 0 | D39: 0 | E39: 0 | F39: 0 | G39: 0 | H39: 0
B40: Other Component | C40: =C$37-C$38-C$39 -> 0 | D40: 0 | E40: 0 | F40: 0 | G40: 0 | H40: 0
B42: Total Act. Grp. Leaders Salaries | C42: =SUM($C$37:$H$37) -> 0
B44: 4 YO Act. Grp. Leaders Salaries | C44: =SUM($C38:$H38) -> 0
B45: 3 YO Act. Grp. Leaders Salaries | C45: =SUM($C39:$H39) -> 0
B46: Other Act. Grp. Leaders Salaries | C46: =SUM($C40:$H40) -> 0

Sheet Other Staff
C2: Annual Salary Costs: Other Staff | H2: 2023-10-26
B5: Member / Service Name: | C5: ='Main Dashboard'!$C$5 -> 0 | E5: Weeks in Period: | F5: ='Main Dashboard'!$F$5 -> 0
B7: For Period / FY Beginning: | C7: ='Main Dashboard'!$C$7 -> 00:00:00 | E7: Term Weeks in Period: | F7: ='Main Dashboard'!$F$7 -> 0
B9: Other Staff (Name):
B10: Role Description:
B11: Hourly Rate
B12: Increment Date
B13: New Hourly Rate
B14: Support Allocation (Hours)
B15: Four Year Old
B16: Three Year Old
B17: Other
B18: Minimum Paid Hours | C18: =IF((SUM(C$15:C$17))>=25.5,38,ROUNDUP(4*(SUM(C$15:C$17))*(60+$C$27)/60,0)/4) -> 0 | D18: 0 | E18: 0 | F18: 0 | G18: 0 | H18: 0
B19: Weekly Paid Hours
B20: Additional Non-Teaching Time | C20: =C$19-C$18 -> 0 | D20: 0 | E20: 0 | F20: 0 | G20: 0 | H20: 0
B21: Salary
B22: Weeks Before Increment | C22: =IF(C$12="",0,ROUNDUP((C$12-$C$7)/7,0)) -> 0 | D22: 0 | E22: 0 | F22: 0 | G22: 0 | H22: 0
B23: Weekly Salary | C23: =ROUND(C$19*C$11,2) -> 0 | D23: 0 | E23: 0 | F23: 0 | G23: 0 | H23: 0
B24: Weeks After Increment | C24: =IF(C$22=0,$F$5,$F$5-C$22) -> 0 | D24: 0 | E24: 0 | F24: 0 | G24: 0 | H24: 0
B25: Weekly Salary | C25: =ROUND(C$19*C$13,2) -> 0 | D25: 0 | E25: 0 | F25: 0 | G25: 0 | H25: 0
B27: Minimum Non Teaching Time: | C27: 30 | D27: minutes for each hour of teaching. (applies to all teachers / educators on this page)
B29: Subtotals
B30: Annual Salary | C30: =ROUNDUP(C$22*C$23+C$24*C$25+C$25*0.7,0) -> 0 | D30: 0 | E30: 0 | F30: 0 | G30: 0 | H30: 0
B31: Four Year Old Component | C31: =IFERROR(IF((C$19=0),0,ROUND(C$30*C$15/(SUM(C$15:C$17)),0)),0) -> 0 | D31: 0 | E31: 0 | F31: 0 | G31: 0 | H31: 0
B32: Three Year Old Component | C32: =IFERROR(IF((C$19=0),0,ROUND(C$30*C$16/(SUM(C$15:C$17)),0)),0) -> 0 | D32: 0 | E32: 0 | F32: 0 | G32: 0 | H32: 0
B33: Other Component | C33: =C$30-C$31-C$32 -> 0 | D33: 0 | E33: 0 | F33: 0 | G33: 0 | H33: 0
B35: Total Other Staff Salaries | C35: =SUM($C$30:$H$30) -> 0
B37: 4 YO Other Staff Salaries | C37: =SUM($C31:$H31) -> 0
B38: 3 YO Other Staff Salaries | C38: =SUM($C32:$H32) -> 0
B39: Other Other Staff Salaries | C39: =SUM($C33:$H33) -> 0

Sheet Holiday Programs
C2: Holiday Programs | I2: 2023-10-26
B5: Member / Service Name: | C5: ='Main Dashboard'!$C$5 -> 0 | E5: Weeks in Period: | F5: ='Main Dashboard'!$F$5 -> 0
B7: For Period / FY Beginning: | C7: ='Main Dashboard'!$C$7 -> 00:00:00 | E7: Term Weeks in Period: | F7: ='Main Dashboard'!$F$7 -> 0
B10: PROFILE | C10: Weekly Hours | D10: Number of Children | E10: Weeks of Operation | F10: Hourly Rate | G10: Gross Income
B11: Program 1 | G11: =ROUND($F11*$E11*$D11*$C11,0) -> 0
B12: Program 2 | G12: =ROUND($F12*$E12*$D12*$C12,0) -> 0
B13: Program 3 | G13: =ROUND($F13*$E13*$D13*$C13,0) -> 0
B14: Program 4 | G14: =ROUND($F14*$E14*$D14*$C14,0) -> 0
F15: Total income | G15: =SUM($G$11:$G$14) -> 0
B17: STAFFING
B18: Name
B19: Hourly Rate
B20: Contact Hours
B21: Non Contact Hours
B22: Weeks of Attendance
B24: Salary | D24: =ROUND(D$19*(D$20+D$21)*D$22,0) -> 0 | E24: =ROUND(E$19*(E$20+E$21)*E$22,0) -> 0 | F24: =ROUND(F$19*(F$20+F$21)*F$22,0) -> 0 | G24: =ROUND(G$19*(G$20+G$21)*G$22,0) -> 0 | H24: =ROUND(H$19*(H$20+H$21)*H$22,0) -> 0 | I24: Super.
B25: Superannuation | D25: =D$24*$I$25 -> 0 | E25: =E$24*$I$25 -> 0 | F25: =F$24*$I$25 -> 0 | G25: =G$24*$I$25 -> 0 | H25: =H$24*$I$25 -> 0 | I25: 0.1
B27: Total Salary Cost | D27: =ROUND(SUM($D$24:$H$25),0) -> 0
B29: OTHER EXPENDITURE
B30: Additional Consumables
B31: Excursion Costs
B32: Food
B33: Other
B34: Other
B35: Other
B36: Total | D36: =SUM($D$30:$D$35) -> 0
B39: Total Income | D39: =$G$15 -> 0
B40: Total Expenses | D40: =$D$27+$D$36 -> 0
B41: Surplus | D41: =$D$39-$D$40 -> 0

Sheet Day Care Programs
C2: Day Care Programs | I2: 2023-10-26
B5: Member / Service Name: | C5: ='Main Dashboard'!$C$5 -> 0 | E5: Weeks in Period: | F5: ='Main Dashboard'!$F$5 -> 0
B7: For Period / FY Beginning: | C7: ='Main Dashboard'!$C$7 -> 00:00:00 | E7: Term Weeks in Period: | F7: ='Main Dashboard'!$F$7 -> 0
B10: PROFILE | C10: Weekly Hours | D10: Number of Children | E10: Weeks of Operation | F10: Hourly Rate | G10: Gross Income
B11: Program 1 | G11: =ROUND($F11*$E11*$D11*$C11,0) -> 0
B12: Program 2 | G12: =ROUND($F12*$E12*$D12*$C12,0) -> 0
B13: Program 3 | G13: =ROUND($F13*$E13*$D13*$C13,0) -> 0
B14: Program 4 | G14: =ROUND($F14*$E14*$D14*$C14,0) -> 0
F15: Total income | G15: =SUM($G$11:$G$14) -> 0
B17: STAFFING
B18: Name
B19: Hourly Rate
B20: Contact Hours
B21: Non Contact Hours
B22: Weeks of Attendance
B24: Salary | D24: =ROUND(D$19*(D$20+D$21)*D$22,0) -> 0 | E24: =ROUND(E$19*(E$20+E$21)*E$22,0) -> 0 | F24: =ROUND(F$19*(F$20+F$21)*F$22,0) -> 0 | G24: =ROUND(G$19*(G$20+G$21)*G$22,0) -> 0 | H24: =ROUND(H$19*(H$20+H$21)*H$22,0) -> 0 | I24: Super.
B25: Superannuation | D25: =D$24*$I$25 -> 0 | E25: =E$24*$I$25 -> 0 | F25: =F$24*$I$25 -> 0 | G25: =G$24*$I$25 -> 0 | H25: =H$24*$I$25 -> 0 | I25: 0.1
B27: Total Salary Cost | D27: =ROUND(SUM($D$24:$H$25),0) -> 0
B29: OTHER EXPENDITURE
B30: Additional Consumables
B31: Excursion Costs
B32: Food
B33: Other
B34: Other
B35: Other
B36: Total | D36: =SUM($D$30:$D$35) -> 0
B39: Total Income | D39: =$G$15 -> 0
B40: Total Expenses | D40: =$D$27+$D$36 -> 0
B41: Surplus | D41: =$D$39-$D$40 -> 0

Sheet Budget
C2: ="FINANCIAL BUDGET ("&Profile!$J$3&", "&Profile!$I$7&")" -> FINANCIAL BUDGET (Standard, Table 1 - Services operating under the Early Childhood Enterprise Agreements and do not opt in to Free Kinder) | K2: 2023-10-26
C5: Member / Service Name: | D5: ='Main Dashboard'!$C$5 -> 0 | G5: Weeks in Period: | H5: ='Main Dashboard'!$F$5 -> 0
C7: For Period / FY Beginning: | D7: ='Main Dashboard'!$C$7 -> 00:00:00 | G7: Term Weeks in Period: | H7: ='Main Dashboard'!$F$7 -> 0
B10: Budget
B12: Income | D12: Apportion? | E12: Total | F12: 4 YO | G12: 3 YO | H12: Other | I12: Day Care | J12: Holiday | K12: % of Total Inc.
B13: DE Per Capita (Including Ratio Supplement Where Applicable) | E13: =SUM($F13:$J13) -> 0 | F13: =Profile!$F$16*IF(Profile!$J$3="Standard",Profile!$J$42,Profile!$J$43)+Profile!$U$16 -> 0 | G13: =Profile!$I$23+Profile!$U$23+Profile!$V$23 -> 0 | K13: =IFERROR($E13/$E$29,0) -> 0
B14: Free Kinder Funding | E14: 0 | F14: =Profile!$J$16 -> 0 | G14: =Profile!$J$23 -> 0 | K14: =IFERROR($E14/$E$29,0) -> 0
B15: DE Teacher Supplement | E15: 0 | F15: =Profile!$G$16 -> 0 | G15: =Profile!$G$23 -> 0 | K15: 0
B16: Other Govt Funding | E16: 0 | K16: 0
B17: Kindergarten Fees Subsidy | E17: 0 | F17: =SUM(Profile!$V$16:$W$16) -> 0 | G17: =SUM(Profile!$V$23:$W$23) -> 0 | K17: 0
B18: KFS Add on Fee | E18: 0 | F18: =SUM(Profile!$T$11:$T$15) -> 0 | G18: =SUM(Profile!$T$19:$T$22) -> 0 | K18: 0
B19: Fees Income | E19: 0 | F19: =SUM(Profile!$S$11:$S$15) -> 0 | G19: =SUM(Profile!$S$19:$S$22) -> 0 | H19: =SUM(Profile!$S$26:$S$29) -> 0 | I19: ='Day Care Programs'!$D$39 -> 0 | J19: ='Holiday Programs'!$D$39 -> 0 | K19: 0
B20: Fundraising | D20: No | F20: =IF($D20="Yes",$E20*Profile!$H$16/Profile!$H$32,0) -> 0 | G20: =IF($D20="Yes",$E20*Profile!$H$23/Profile!$H$32,$F20) -> 0 | H20: =IF($D20="Yes",$E20*Profile!$H$30/Profile!$H$32,$G20) -> 0 | K20: 0
B21: Donations | D21: Yes | F21: =IFERROR(IF($D21="Yes",$E21*Profile!$H$16/Profile!$H$32,0),0) -> 0 | G21: =IFERROR(IF($D21="Yes",$E21*Profile!$H$23/Profile!$H$32,$F21),0) -> 0 | H21: =IFERROR(IF($D21="Yes",$E21*Profile!$H$30/Profile!$H$32,$G21),0) -> 0 | K21: 0
B22: Membership Fees | D22: Yes | F22: =IFERROR(IF($D22="Yes",$E22*Profile!$H$16/Profile!$H$32,0),0) -> 0 | G22: =IFERROR(IF($D22="Yes",$E22*Profile!$H$23/Profile!$H$32,$F22),0) -> 0 | H22: =IFERROR(IF($D22="Yes",$E22*Profile!$H$30/Profile!$H$32,$G22),0) -> 0 | K22: 0
B23: Bank Interest | D23: No | F23: =IF($D23="Yes",$E23*Profile!$H$16/Profile!$H$32,0) -> 0 | G23: =IF($D23="Yes",$E23*Profile!$H$23/Profile!$H$32,$F23) -> 0 | H23: =IF($D23="Yes",$E23*Profile!$H$30/Profile!$H$32,$G23) -> 0 | K23: 0
B24: Other | D24: Yes | F24: =IFERROR(IF($D24="Yes",$E24*Profile!$H$16/Profile!$H$32,0),0) -> 0 | G24: =IFERROR(IF($D24="Yes",$E24*Profile!$H$23/Profile!$H$32,$F24),0) -> 0 | H24: =IFERROR(IF($D24="Yes",$E24*Profile!$H$30/Profile!$H$32,$G24),0) -> 0 | K24: 0
B25: Other | D25: Yes | F25: =IFERROR(IF($D25="Yes",$E25*Profile!$H$16/Profile!$H$32,0),0) -> 0 | G25: =IFERROR(IF($D25="Yes",$E25*Profile!$H$23/Profile!$H$32,$F25),0) -> 0 | H25: =IFERROR(IF($D25="Yes",$E25*Profile!$H$30/Profile!$H$32,$G25),0) -> 0 | K25: 0
B26: Other | D26: Yes | F26: =IFERROR(IF($D26="Yes",$E26*Profile!$H$16/Profile!$H$32,0),0) -> 0 | G26: =IFERROR(IF($D26="Yes",$E26*Profile!$H$23/Profile!$H$32,$F26),0) -> 0 | H26: =IFERROR(IF($D26="Yes",$E26*Profile!$H$30/Profile!$H$32,$G26),0) -> 0 | K26: 0
B27: Other | D27: Yes | F27: =IFERROR(IF($D27="Yes",$E27*Profile!$H$16/Profile!$H$32,0),0) -> 0 | G27: =IFERROR(IF($D27="Yes",$E27*Profile!$H$23/Profile!$H$32,$F27),0) -> 0 | H27: =IFERROR(IF($D27="Yes",$E27*Profile!$H$30/Profile!$H$32,$G27),0) -> 0 | K27: 0
B28: Other | D28: Yes | F28: =IFERROR(IF($D28="Yes",$E28*Profile!$H$16/Profile!$H$32,0),0) -> 0 | G28: =IFERROR(IF($D28="Yes",$E28*Profile!$H$23/Profile!$H$32,$F28),0) -> 0 | H28: =IFERROR(IF($D28="Yes",$E28*Profile!$H$30/Profile!$H$32,$G28),0) -> 0 | K28: 0
B29: Total Income | E29: =IFERROR(SUM(E$13:E$28),0) -> 0 | F29: 0 | G29: 0 | H29: 0 | I29: 0 | J29: 0 | K29: =IFERROR(SUM($K$13:$K$28),0) -> 0
B31: Expenditure | E31: Total | F31: 4 yo | G31: 3 yo | H31: Other | I31: Day Care | J31: Holiday | K31: % of Total Exp.
B32: Salaries | E32: =SUM($F32:$J32) -> 0 | F32: =Teachers!$C$42+'Diploma Educators'!$C$45+'Cert III Educators'!$C$45+'Activity Group Leaders'!$C$44+'Other Staff'!$C$37 -> 0 | G32: =Teachers!$C$43+'Diploma Educators'!$C$46+'Cert III Educators'!$C$46+'Activity Group Leaders'!$C$45+'Other Staff'!$C$38 -> 0 | H32: =Teachers!$C$44+'Diploma Educators'!$C$47+'Cert III Educators'!$C$47+'Activity Group Leaders'!$C$46+'Other Staff'!$C$39 -> 0 | I32: ='Day Care Programs'!$D$27 -> 0 | J32: ='Holiday Programs'!$D$27 -> 0 | K32: =IFERROR($E32/$E$66,0) -> 0
B33: On Costs | E33: =SUM($F33:$J33) -> 0 | F33: =ROUND(F$32*Profile!$C$43,0) -> 0 | G33: =ROUND(G$32*Profile!$C$43,0) -> 0 | H33: =ROUND(H$32*Profile!$C$43,0) -> 0 | I33: =ROUND(I$32*Profile!$C$43,0) -> 0 | J33: =ROUND(J$32*Profile!$C$43,0) -> 0 | K33: =IFERROR($E33/$E$66,0) -> 0
B34: Advertising | D34: Yes | F34: =IFERROR(IF($D34="Yes",$E34*Profile!$H$16/Profile!$H$32,0),0) -> 0 | G34: =IFERROR(IF($D34="Yes",$E34*Profile!$H$23/Profile!$H$32,$F34),0) -> 0 | H34: =IFERROR(IF($D34="Yes",$E34*Profile!$H$30/Profile!$H$32,$G34),0) -> 0 | K34: 0
B35: Audit Fees | D35: Yes | F35: =IFERROR(IF($D35="Yes",$E35*Profile!$H$16/Profile!$H$32,0),0) -> 0 | G35: =IFERROR(IF($D35="Yes",$E35*Profile!$H$23/Profile!$H$32,$F35),0) -> 0 | H35: =IFERROR(IF($D35="Yes",$E35*Profile!$H$30/Profile!$H$32,$G35),0) -> 0 | K35: 0
B36: Bad Debt Allowance | E36: =SUM($F36:$J36) -> 0 | F36: =(F$18+F$19)*Profile!$C$45 -> 0 | G36: =(G$18+G$19)*Profile!$C$45 -> 0 | H36: =(H$18+H$19)*Profile!$C$45 -> 0 | I36: =(I$18+I$19)*Profile!$C$45 -> 0 | J36: =(J$18+J$19)*Profile!$C$45 -> 0 | K36: 0
B37: Bank Fees & Charges | D37: Yes | F37: =IFERROR(IF($D37="Yes",$E37*Profile!$H$16/Profile!$H$32,0),0) -> 0 | G37: =IFERROR(IF($D37="Yes",$E37*Profile!$H$23/Profile!$H$32,$F37),0) -> 0 | H37: =IFERROR(IF($D37="Yes",$E37*Profile!$H$30/Profile!$H$32,$G37),0) -> 0 | K37: 0
B38: Cleaning Costs | D38: Yes | F38: =IFERROR(IF($D38="Yes",$E38*Profile!$H$16/Profile!$H$32,0),0) -> 0 | G38: =IFERROR(IF($D38="Yes",$E38*Profile!$H$23/Profile!$H$32,$F38),0) -> 0 | H38: =IFERROR(IF($D38="Yes",$E38*Profile!$H$30/Profile!$H$32,$G38),0) -> 0 | K38: 0
B39: Consumables | D39: Yes | F39: =IFERROR(IF($D39="Yes",$E39*Profile!$H$16/Profile!$H$32,0),0) -> 0 | G39: =IFERROR(IF($D39="Yes",$E39*Profile!$H$23/Profile!$H$32,$F39),0) -> 0 | H39: =IFERROR(IF($D39="Yes",$E39*Profile!$H$30/Profile!$H$32,$G39),0) -> 0 | K39: 0
B40: Electricity | D40: Yes | F40: =IFERROR(IF($D40="Yes",$E40*Profile!$H$16/Profile!$H$32,0),0) -> 0 | G40: =IFERROR(IF($D40="Yes",$E40*Profile!$H$23/Profile!$H$32,$F40),0) -> 0 | H40: =IFERROR(IF($D40="Yes",$E40*Profile!$H$30/Profile!$H$32,$G40),0) -> 0 | K40: 0
B41: Equipment Purchases | D41: Yes | F41: =IFERROR(IF($D41="Yes",$E41*Profile!$H$16/Profile!$H$32,0),0) -> 0 | G41: =IFERROR(IF($D41="Yes",$E41*Profile!$H$23/Profile!$H$32,$F41),0) -> 0 | H41: =IFERROR(IF($D41="Yes",$E41*Profile!$H$30/Profile!$H$32,$G41),0) -> 0 | K41: 0
B42: Equipment Repairs | D42: Yes | F42: =IFERROR(IF($D42="Yes",$E42*Profile!$H$16/Profile!$H$32,0),0) -> 0 | G42: =IFERROR(IF($D42="Yes",$E42*Profile!$H$23/Profile!$H$32,$F42),0) -> 0 | H42: =IFERROR(IF($D42="Yes",$E42*Profile!$H$30/Profile!$H$32,$G42),0) -> 0 | K42: 0
B43: Excursions/Entertainment | D43: Yes | F43: =IFERROR(IF($D43="Yes",$E43*Profile!$H$16/Profile!$H$32,0),0) -> 0 | G43: =IFERROR(IF($D43="Yes",$E43*Profile!$H$23/Profile!$H$32,$F43),0) -> 0 | H43: =IFERROR(IF($D43="Yes",$E43*Profile!$H$30/Profile!$H$32,$G43),0) -> 0 | K43: 0
B44: External Consultants | D44: Yes | F44: =IFERROR(IF($D44="Yes",$E44*Profile!$H$16/Profile!$H$32,0),0) -> 0 | G44: =IFERROR(IF($D44="Yes",$E44*Profile!$H$23/Profile!$H$32,$F44),0) -> 0 | H44: =IFERROR(IF($D44="Yes",$E44*Profile!$H$30/Profile!$H$32,$G44),0) -> 0 | K44: 0
B45: First Aid Training | D45: Yes | F45: =IFERROR(IF($D45="Yes",$E45*Profile!$H$16/Profile!$H$32,0),0) -> 0 | G45: =IFERROR(IF($D45="Yes",$E45*Profile!$H$23/Profile!$H$32,$F45),0) -> 0 | H45: =IFERROR(IF($D45="Yes",$E45*Profile!$H$30/Profile!$H$32,$G45),0) -> 0 | K45: 0
B46: Gas | D46: Yes | F46: =IFERROR(IF($D46="Yes",$E46*Profile!$H$16/Profile!$H$32,0),0) -> 0 | G46: =IFERROR(IF($D46="Yes",$E46*Profile!$H$23/Profile!$H$32,$F46),0) -> 0 | H46: =IFERROR(IF($D46="Yes",$E46*Profile!$H$30/Profile!$H$32,$G46),0) -> 0 | K46: 0
B47: Incidental/Petty Cash | D47: Yes | F47: =IFERROR(IF($D47="Yes",$E47*Profile!$H$16/Profile!$H$32,0),0) -> 0 | G47: =IFERROR(IF($D47="Yes",$E47*Profile!$H$23/Profile!$H$32,$F47),0) -> 0 | H47: =IFERROR(IF($D47="Yes",$E47*Profile!$H$30/Profile!$H$32,$G47),0) -> 0 | K47: 0
B48: Insurance (Not Workcover) | D48: Yes | F48: =IFERROR(IF($D48="Yes",$E48*Profile!$H$16/Profile!$H$32,0),0) -> 0 | G48: =IFERROR(IF($D48="Yes",$E48*Profile!$H$23/Profile!$H$32,$F48),0) -> 0 | H48: =IFERROR(IF($D48="Yes",$E48*Profile!$H$30/Profile!$H$32,$G48),0) -> 0 | K48: 0
B49: Service Approval & Incorp. Fees | D49: Yes | F49: =IFERROR(IF($D49="Yes",$E49*Profile!$H$16/Profile!$H$32,0),0) -> 0 | G49: =IFERROR(IF($D49="Yes",$E49*Profile!$H$23/Profile!$H$32,$F49),0) -> 0 | H49: =IFERROR(IF($D49="Yes",$E49*Profile!$H$30/Profile!$H$32,$G49),0) -> 0 | K49: 0
B50: Maintenance Bldg & Grnds | D50: Yes | F50: =IFERROR(IF($D50="Yes",$E50*Profile!$H$16/Profile!$H$32,0),0) -> 0 | G50: =IFERROR(IF($D50="Yes",$E50*Profile!$H$23/Profile!$H$32,$F50),0) -> 0 | H50: =IFERROR(IF($D50="Yes",$E50*Profile!$H$30/Profile!$H$32,$G50),0) -> 0 | K50: 0
B51: Photocopying | D51: Yes | F51: =IFERROR(IF($D51="Yes",$E51*Profile!$H$16/Profile!$H$32,0),0) -> 0 | G51: =IFERROR(IF($D51="Yes",$E51*Profile!$H$23/Profile!$H$32,$F51),0) -> 0 | H51: =IFERROR(IF($D51="Yes",$E51*Profile!$H$30/Profile!$H$32,$G51),0) -> 0 | K51: 0
B52: Police Checks | D52: Yes | F52: =IFERROR(IF($D52="Yes",$E52*Profile!$H$16/Profile!$H$32,0),0) -> 0 | G52: =IFERROR(IF($D52="Yes",$E52*Profile!$H$23/Profile!$H$32,$F52),0) -> 0 | H52: =IFERROR(IF($D52="Yes",$E52*Profile!$H$30/Profile!$H$32,$G52),0) -> 0 | K52: 0
B53: Postage | D53: Yes | F53: =IFERROR(IF($D53="Yes",$E53*Profile!$H$16/Profile!$H$32,0),0) -> 0 | G53: =IFERROR(IF($D53="Yes",$E53*Profile!$H$23/Profile!$H$32,$F53),0) -> 0 | H53: =IFERROR(IF($D53="Yes",$E53*Profile!$H$30/Profile!$H$32,$G53),0) -> 0 | K53: 0
B54: Rates | D54: Yes | F54: =IFERROR(IF($D54="Yes",$E54*Profile!$H$16/Profile!$H$32,0),0) -> 0 | G54: =IFERROR(IF($D54="Yes",$E54*Profile!$H$23/Profile!$H$32,$F54),0) -> 0 | H54: =IFERROR(IF($D54="Yes",$E54*Profile!$H$30/Profile!$H$32,$G54),0) -> 0 | K54: 0
B55: Rent | D55: Yes | F55: =IFERROR(IF($D55="Yes",$E55*Profile!$H$16/Profile!$H$32,0),0) -> 0 | G55: =IFERROR(IF($D55="Yes",$E55*Profile!$H$23/Profile!$H$32,$F55),0) -> 0 | H55: =IFERROR(IF($D55="Yes",$E55*Profile!$H$30/Profile!$H$32,$G55),0) -> 0 | K55: 0
B56: Staff & Ctte Training | D56: Yes | F56: =IFERROR(IF($D56="Yes",$E56*Profile!$H$16/Profile!$H$32,0),0) -> 0 | G56: =IFERROR(IF($D56="Yes",$E56*Profile!$H$23/Profile!$H$32,$F56),0) -> 0 | H56: =IFERROR(IF($D56="Yes",$E56*Profile!$H$30/Profile!$H$32,$G56),0) -> 0 | K56: 0
B57: Staff Travel | D57: Yes | F57: =IFERROR(IF($D57="Yes",$E57*Profile!$H$16/Profile!$H$32,0),0) -> 0 | G57: =IFERROR(IF($D57="Yes",$E57*Profile!$H$23/Profile!$H$32,$F57),0) -> 0 | H57: =IFERROR(IF($D57="Yes",$E57*Profile!$H$30/Profile!$H$32,$G57),0) -> 0 | K57: 0
B58: Stationary | D58: Yes | F58: =IFERROR(IF($D58="Yes",$E58*Profile!$H$16/Profile!$H$32,0),0) -> 0 | G58: =IFERROR(IF($D58="Yes",$E58*Profile!$H$23/Profile!$H$32,$F58),0) -> 0 | H58: =IFERROR(IF($D58="Yes",$E58*Profile!$H$30/Profile!$H$32,$G58),0) -> 0 | K58: 0
B59: Subscriptions (e.g. ELAA) | D59: Yes | F59: =IFERROR(IF($D59="Yes",$E59*Profile!$H$16/Profile!$H$32,0),0) -> 0 | G59: =IFERROR(IF($D59="Yes",$E59*Profile!$H$23/Profile!$H$32,$F59),0) -> 0 | H59: =IFERROR(IF($D59="Yes",$E59*Profile!$H$30/Profile!$H$32,$G59),0) -> 0 | K59: 0
B60: Telephone | D60: Yes | F60: =IFERROR(IF($D60="Yes",$E60*Profile!$H$16/Profile!$H$32,0),0) -> 0 | G60: =IFERROR(IF($D60="Yes",$E60*Profile!$H$23/Profile!$H$32,$F60),0) -> 0 | H60: =IFERROR(IF($D60="Yes",$E60*Profile!$H$30/Profile!$H$32,$G60),0) -> 0 | K60: 0
B61: Other | D61: Yes | F61: =IFERROR(IF($D61="Yes",$E61*Profile!$H$16/Profile!$H$32,0),0) -> 0 | G61: =IFERROR(IF($D61="Yes",$E61*Profile!$H$23/Profile!$H$32,$F61),0) -> 0 | H61: =IFERROR(IF($D61="Yes",$E61*Profile!$H$30/Profile!$H$32,$G61),0) -> 0 | K61: 0
B62: Other | D62: Yes | F62: =IFERROR(IF($D62="Yes",$E62*Profile!$H$16/Profile!$H$32,0),0) -> 0 | G62: =IFERROR(IF($D62="Yes",$E62*Profile!$H$23/Profile!$H$32,$F62),0) -> 0 | H62: =IFERROR(IF($D62="Yes",$E62*Profile!$H$30/Profile!$H$32,$G62),0) -> 0 | K62: 0
B63: Other | D63: Yes | F63: =IFERROR(IF($D63="Yes",$E63*Profile!$H$16/Profile!$H$32,0),0) -> 0 | G63: =IFERROR(IF($D63="Yes",$E63*Profile!$H$23/Profile!$H$32,$F63),0) -> 0 | H63: =IFERROR(IF($D63="Yes",$E63*Profile!$H$30/Profile!$H$32,$G63),0) -> 0 | K63: 0
B64: Other | D64: Yes | F64: =IFERROR(IF($D64="Yes",$E64*Profile!$H$16/Profile!$H$32,0),0) -> 0 | G64: =IFERROR(IF($D64="Yes",$E64*Profile!$H$23/Profile!$H$32,$F64),0) -> 0 | H64: =IFERROR(IF($D64="Yes",$E64*Profile!$H$30/Profile!$H$32,$G64),0) -> 0 | K64: 0
B65: Other | D65: Yes | F65: =IFERROR(IF($D65="Yes",$E65*Profile!$H$16/Profile!$H$32,0),0) -> 0 | G65: =IFERROR(IF($D65="Yes",$E65*Profile!$H$23/Profile!$H$32,$F65),0) -> 0 | H65: =IFERROR(IF($D65="Yes",$E65*Profile!$H$30/Profile!$H$32,$G65),0) -> 0 | K65: 0
B66: Total Expenditure | E66: =SUM(E$32:E$65) -> 0 | F66: =IFERROR(SUM(F$32:F$65),0) -> 0 | G66: 0 | H66: 0 | I66: 0 | J66: 0 | K66: 0
B68: BUDGET SURPLUS / DEFECIT | E68: =E$29-E$66 -> 0 | F68: 0 | G68: 0 | H68: 0 | I68: 0 | J68: 0
B70: Performance Summary Ratios: | C70: All Programs | E70: =IFERROR($E$66/$E$29,0) -> 0
B71: Costs to Income | C71: 4 YO Programs | E71: =IFERROR($F$66/$F$29,0) -> 0
C72: 3 YO Programs | E72: =IFERROR($G$66/$G$29,0) -> 0
C73: Staff Expense to Income: | E73: =IFERROR(($E$32+$E$33)/$E$29,0) -> 0
C74: DET Supp. to Tot. Income: | E74: =IFERROR(($E$13+$E$15)/$E$29,0) -> 0

Sheet Profile
C2: Member Service Profile | I2: Grant Supplement | Q2: 2023-10-26
I3: Location Type: | J3: Standard
C5: Member / Service Name: | D5: ='Main Dashboard'!$C$5 -> 0 | F5: Weeks in Period: | G5: ='Main Dashboard'!$F$5 -> 0 | I5: Teacher Grants & Supplements
I6: IMPORTANT: Select below the correct funding model under which this Kindergarten operates
C7: For Period / FY Beginning: | D7: ='Main Dashboard'!$C$7 -> 00:00:00 | F7: Term Weeks in Period: | G7: ='Main Dashboard'!$F$7 -> 0 | I7: Table 1 - Services operating under the Early Childhood Enterprise Agreements and do not opt in to Free Kinder | O7: =VLOOKUP($I$7,'2025 Funding Rates'!$B$8:$I$11,8,FALSE) -> T1
B10: 4 Year Olds | D10: Teacher Level (If more than 2.5) | E10: Hours Per Week | F10: Enrolled Children | G10: Teacher Supplement | H10: Cost Units | J10: Free Kinder Funding | K10: # Child. Elig. for KFS | L10: Term Fee | M10: Suggested Term Fee | N10: KFS Add On | O10: Fee Policy KFS Add On | P10: Gap Fee | Q10: Hourly Rate | R10: Hourly Add On | S10: Fees Total | T10: Add on Total | U10: Ratio Supp. | V10: KFS Supp. | W10: KFS Total | X10: Funded Hours | Y10: KFS Rate
B11: Group A | C11: 4yo | D11: L 2.5 Supplement | G11: =IFERROR(IF($D11="L 2.5 Supplement",VLOOKUP($F11,Supp_2.4,IF($J$3="Standard",2,3),FALSE),IF($D11="L 3.1 Supplement",VLOOKUP($F11,Supp_2.5,IF($J$3="Standard",2,3),FALSE),IF($D11="L 3.2-3.6 Supplement",VLOOKUP($F11,Supp_3,IF($J$3="Standard",2,3),FALSE),0))),0) -> 0 | H11: =IF(OR($O$7="T3",$O$7="T4"),$E11*$F$11,$E11*($F11-$K11)) -> 0 | J11: =IF(OR(Profile!$O$7="T3",Profile!$O$7="T4"),$J$47*$F11,0) -> 0 | M11: =IF(OR($O$7="T3",$O$7="T4"),0,IF($H$16=0,0,$E11*(Budget!$F$66-Budget!$F$29+Budget!$F$19+Budget!$F$15)/$H$16/4/(1-$C$45))) -> 0 | O11: =IF(OR($O$7="T3",$O$7="T4"),0,(IF($P11<$R11,$P11,$R11))/4) -> 0 | P11: =IF(OR($O$7="T3",$O$7="T4"),0,IF($E11>$X11,$L11*4-$Y11,0)) -> 0 | Q11: =IF(OR($O$7="T3",$O$7="T4"),0,IF($E11=0,0,ROUND($L11*4/$E11,0))) -> 0 | R11: =IF(OR($O$7="T3",$O$7="T4"),0,$Q11*($E11-$X11)) -> 0 | S11: =IF(OR($O$7="T3",$O$7="T4"),0,ROUND(4*($F11-$K11)*$L11,0)) -> 0 | T11: =IF(OR($O$7="T3",$O$7="T4"),0,ROUND(4*$K11*$N11,0)) -> 0 | U11: =IF($F11-22>0,$J$36*$F11,0) -> 0 | V11: =IF(OR($O$7="T3",$O$7="T4"),0,IF($K11-22>0,$J$38*($K11-22),0)) -> 0 | W11: =IF(OR($O$7="T3",$O$7="T4"),0,$K11*$Y11) -> 0 | X11: =IF($E11<15,15*($E11/15),15) -> 0 | Y11: =IF(OR($O$7="T3",$O$7="T4"),0,$J$44) -> 2627
B12: Group B | C12: 4yo | G12: =IFERROR(IF($D12="L 2.5 Supplement",VLOOKUP($F12,Supp_2.4,IF($J$3="Standard",2,3),FALSE),IF($D12="L 3.1 Supplement",VLOOKUP($F12,Supp_2.5,IF($J$3="Standard",2,3),FALSE),IF($D12="L 3.2-3.6 Supplement",VLOOKUP($F12,Supp_3,IF($J$3="Standard",2,3),FALSE),0))),0) -> 0 | H12: =IF(OR($O$7="T3",$O$7="T4"),$E12*$F$11,$E12*($F12-$K12)) -> 0 | J12: =IF(OR(Profile!$O$7="T3",Profile!$O$7="T4"),$J$47*$F12,0) -> 0 | M12: =IF(OR($O$7="T3",$O$7="T4"),0,IF($H$16=0,0,$E12*(Budget!$F$66-Budget!$F$29+Budget!$F$19+Budget!$F$15)/$H$16/4/(1-$C$45))) -> 0 | O12: =IF(OR($O$7="T3",$O$7="T4"),0,(IF($P12<$R12,$P12,$R12))/4) -> 0 | P12: =IF(OR($O$7="T3",$O$7="T4"),0,IF($E12>$X12,$L12*4-$Y12,0)) -> 0 | Q12: =IF(OR($O$7="T3",$O$7="T4"),0,IF($E12=0,0,ROUND($L12*4/$E12,0))) -> 0 | R12: =IF(OR($O$7="T3",$O$7="T4"),0,$Q12*($E12-$X12)) -> 0 | S12: =IF(OR($O$7="T3",$O$7="T4"),0,ROUND(4*($F12-$K12)*$L12,0)) -> 0 | T12: =IF(OR($O$7="T3",$O$7="T4"),0,ROUND(4*$K12*$N12,0)) -> 0 | U12: =IF($F12-22>0,$J$36*$F12,0) -> 0 | V12: =IF(OR($O$7="T3",$O$7="T4"),0,IF($K12-22>0,$J$38*($K12-22),0)) -> 0 | W12: =IF(OR($O$7="T3",$O$7="T4"),0,$K12*$Y12) -> 0 | X12: =IF($E12<15,15*($E12/15),15) -> 0 | Y12: =IF(OR($O$7="T3",$O$7="T4"),0,$J$44) -> 2627
B13: Group C | C13: 4yo | G13: =IFERROR(IF($D13="L 2.5 Supplement",VLOOKUP($F13,Supp_2.4,IF($J$3="Standard",2,3),FALSE),IF($D13="L 3.1 Supplement",VLOOKUP($F13,Supp_2.5,IF($J$3="Standard",2,3),FALSE),IF($D13="L 3.2-3.6 Supplement",VLOOKUP($F13,Supp_3,IF($J$3="Standard",2,3),FALSE),0))),0) -> 0 | H13: =IF(OR($O$7="T3",$O$7="T4"),$E13*$F$11,$E13*($F13-$K13)) -> 0 | J13: =IF(OR(Profile!$O$7="T3",Profile!$O$7="T4"),$J$47*$F13,0) -> 0 | M13: =IF(OR($O$7="T3",$O$7="T4"),0,IF($H$16=0,0,$E13*(Budget!$F$66-Budget!$F$29+Budget!$F$19+Budget!$F$15)/$H$16/4/(1-$C$45))) -> 0 | O13: =IF(OR($O$7="T3",$O$7="T4"),0,(IF($P13<$R13,$P13,$R13))/4) -> 0 | P13: =IF(OR($O$7="T3",$O$7="T4"),0,IF($E13>$X13,$L13*4-$Y13,0)) -> 0 | Q13: =IF(OR($O$7="T3",$O$7="T4"),0,IF($E13=0,0,ROUND($L13*4/$E13,0))) -> 0 | R13: =IF(OR($O$7="T3",$O$7="T4"),0,$Q13*($E13-$X13)) -> 0 | S13: =IF(OR($O$7="T3",$O$7="T4"),0,ROUND(4*($F13-$K13)*$L13,0)) -> 0 | T13: =IF(OR($O$7="T3",$O$7="T4"),0,ROUND(4*$K13*$N13,0)) -> 0 | U13: =IF($F13-22>0,$J$36*$F13,0) -> 0 | V13: =IF(OR($O$7="T3",$O$7="T4"),0,IF($K13-22>0,$J$38*($K13-22),0)) -> 0 | W13: =IF(OR($O$7="T3",$O$7="T4"),0,$K13*$Y13) -> 0 | X13: =IF($E13<15,15*($E13/15),15) -> 0 | Y13: =IF(OR($O$7="T3",$O$7="T4"),0,$J$44) -> 2627
B14: Group D | C14: 4yo | G14: =IFERROR(IF($D14="L 2.5 Supplement",VLOOKUP($F14,Supp_2.4,IF($J$3="Standard",2,3),FALSE),IF($D14="L 3.1 Supplement",VLOOKUP($F14,Supp_2.5,IF($J$3="Standard",2,3),FALSE),IF($D14="L 3.2-3.6 Supplement",VLOOKUP($F14,Supp_3,IF($J$3="Standard",2,3),FALSE),0))),0) -> 0 | H14: =IF(OR($O$7="T3",$O$7="T4"),$E14*$F$11,$E14*($F14-$K14)) -> 0 | J14: =IF(OR(Profile!$O$7="T3",Profile!$O$7="T4"),$J$47*$F14,0) -> 0 | M14: =IF(OR($O$7="T3",$O$7="T4"),0,IF($H$16=0,0,$E14*(Budget!$F$66-Budget!$F$29+Budget!$F$19+Budget!$F$15)/$H$16/4/(1-$C$45))) -> 0 | O14: =IF(OR($O$7="T3",$O$7="T4"),0,(IF($P14<$R14,$P14,$R14))/4) -> 0 | P14: =IF(OR($O$7="T3",$O$7="T4"),0,IF($E14>$X14,$L14*4-$Y14,0)) -> 0 | Q14: =IF(OR($O$7="T3",$O$7="T4"),0,IF($E14=0,0,ROUND($L14*4/$E14,0))) -> 0 | R14: =IF(OR($O$7="T3",$O$7="T4"),0,$Q14*($E14-$X14)) -> 0 | S14: =IF(OR($O$7="T3",$O$7="T4"),0,ROUND(4*($F14-$K14)*$L14,0)) -> 0 | T14: =IF(OR($O$7="T3",$O$7="T4"),0,ROUND(4*$K14*$N14,0)) -> 0 | U14: =IF($F14-22>0,$J$36*$F14,0) -> 0 | V14: =IF(OR($O$7="T3",$O$7="T4"),0,IF($K14-22>0,$J$38*($K14-22),0)) -> 0 | W14: =IF(OR($O$7="T3",$O$7="T4"),0,$K14*$Y14) -> 0 | X14: =IF($E14<15,15*($E14/15),15) -> 0 | Y14: =IF(OR($O$7="T3",$O$7="T4"),0,$J$44) -> 2627
B15: Group E | C15: 4yo | G15: =IFERROR(IF($D15="L 2.5 Supplement",VLOOKUP($F15,Supp_2.4,IF($J$3="Standard",2,3),FALSE),IF($D15="L 3.1 Supplement",VLOOKUP($F15,Supp_2.5,IF($J$3="Standard",2,3),FALSE),IF($D15="L 3.2-3.6 Supplement",VLOOKUP($F15,Supp_3,IF($J$3="Standard",2,3),FALSE),0))),0) -> 0 | H15: =IF(OR($O$7="T3",$O$7="T4"),$E15*$F$11,$E15*($F15-$K15)) -> 0 | J15: =IF(OR(Profile!$O$7="T3",Profile!$O$7="T4"),$J$47*$F15,0) -> 0 | M15: =IF(OR($O$7="T3",$O$7="T4"),0,IF($H$16=0,0,$E15*(Budget!$F$66-Budget!$F$29+Budget!$F$19+Budget!$F$15)/$H$16/4/(1-$C$45))) -> 0 | O15: =IF(OR($O$7="T3",$O$7="T4"),0,(IF($P15<$R15,$P15,$R15))/4) -> 0 | P15: =IF(OR($O$7="T3",$O$7="T4"),0,IF($E15>$X15,$L15*4-$Y15,0)) -> 0 | Q15: =IF(OR($O$7="T3",$O$7="T4"),0,IF($E15=0,0,ROUND($L15*4/$E15,0))) -> 0 | R15: =IF(OR($O$7="T3",$O$7="T4"),0,$Q15*($E15-$X15)) -> 0 | S15: =IF(OR($O$7="T3",$O$7="T4"),0,ROUND(4*($F15-$K15)*$L15,0)) -> 0 | T15: =IF(OR($O$7="T3",$O$7="T4"),0,ROUND(4*$K15*$N15,0)) -> 0 | U15: =IF($F15-22>0,$J$36*$F15,0) -> 0 | V15: =IF(OR($O$7="T3",$O$7="T4"),0,IF($K15-22>0,$J$38*($K15-22),0)) -> 0 | W15: =IF(OR($O$7="T3",$O$7="T4"),0,$K15*$Y15) -> 0 | X15: =IF($E15<15,15*($E15/15),15) -> 0 | Y15: =IF(OR($O$7="T3",$O$7="T4"),0,$J$44) -> 2627
E16: Subtotals | F16: =SUM($F11:$F15) -> 0 | G16: =SUM(G$11:G$15) -> 0 | H16: =SUM($H11:$H15) -> 0 | J16: =SUM(J$11:J$15) -> 0 | U16: =SUM(U$11:U$15) -> 0 | V16: =SUM(V$11:V$15) -> 0 | W16: =SUM(W$11:W$15) -> 0
B18: 3 Year Olds | D18: Teacher Level (If more than 2.5) | E18: Hours Per Week | F18: Enrolled Children | G18: Teacher Supplement | H18: Cost Units | I18: 3yo Flexible Funding | J18: Free Kinder Funding | K18: # Child. Elig. for KFS | L18: Term Fee | M18: Suggested Term Fee | N18: KFS Add On | O18: Fee Policy KFS Add On | P18: Gap Fee | Q18: Hourly Rate | R18: Hourly Add On | S18: Fees Total | T18: Add on Total | U18: Ratio Supp. | V18: KFS Supp. | W18: KFS Total | X18: Funded Hours | Y18: KFS Rate
B19: Group E | C19: 3yo | F19: 6 | G19: =IFERROR(IF($D19="L 2.5 Supplement",VLOOKUP($F19,Supp_2.4,IF($J$3="Standard",2,3),FALSE)/15*$E19,IF($D19="L 3.1 Supplement",VLOOKUP($F19,Supp_2.5,IF($J$3="Standard",2,3),FALSE)/15*$E19,IF($D19="L 3.2-3.6 Supplement",VLOOKUP($F19,Supp_3,IF($J$3="Standard",2,3),FALSE)/15*$E19,0))),0) -> 0 | H19: =IF(OR($O$7="T3",$O$7="T4"),$E19*$F19,$E19*($F19-$K19)) -> 0 | I19: =(IF($J$3="Standard",$J$42,$J$43)/15*$E19)*$F19 -> 0 | J19: =IF(OR(Profile!$O$7="T3",Profile!$O$7="T4"),(($J$47/15)*$E19)*$F19,0) -> 0 | M19: =IF(OR($O$7="T3",$O$7="T4"),0,IF($H$23=0,0,$E19*(Budget!$G$66-Budget!$G$29+Budget!$G$19+Budget!$G$15)/$H$23/4/(1-$C$45))) -> 0 | O19: =IF(OR($O$7="T3",$O$7="T4"),0,(IF($P19<$R19,$P19,$R19))/4) -> 0 | P19: =IF(OR($O$7="T3",$O$7="T4"),0,IF($E19>$X19,$L19*4-$Y19,0)) -> 0 | Q19: =IF(OR($O$7="T3",$O$7="T4"),0,IF($E19=0,0,ROUND($L19*4/$E19,0))) -> 0 | R19: =IF(OR($O$7="T3",$O$7="T4"),0,$Q19*($E19-$X19)) -> 0 | S19: =IF(OR($O$7="T3",$O$7="T4"),0,ROUND(4*($F19-$K19)*$L19,0)) -> 0 | T19: =IF(OR($O$7="T3",$O$7="T4"),0,ROUND(4*$K19*$N19,0)) -> 0 | U19: =IF($F19-22>0,(($J$36/15)*$E19)*$F19,0) -> 0 | V19: =IF(OR($O$7="T3",$O$7="T4"),0,IF($K19-22>0,(($J$38/15)*$E19)*($K19-22),0)) -> 0 | W19: =IF(OR($O$7="T3",$O$7="T4"),0,$K19*$Y19) -> 0 | X19: =IF($E19<15,15*($E19/15),15) -> 0 | Y19: =IF(OR($O$7="T3",$O$7="T4"),0,($J$44/15)*$E19) -> 0
B20: Group F | C20: 3yo | G20: =IFERROR(IF($D20="L 2.5 Supplement",VLOOKUP($F20,Supp_2.4,IF($J$3="Standard",2,3),FALSE)/15*$E20,IF($D20="L 3.1 Supplement",VLOOKUP($F20,Supp_2.5,IF($J$3="Standard",2,3),FALSE)/15*$E20,IF($D20="L 3.2-3.6 Supplement",VLOOKUP($F20,Supp_3,IF($J$3="Standard",2,3),FALSE)/15*$E20,0))),0) -> 0 | H20: =IF(OR($O$7="T3",$O$7="T4"),$E20*$F20,$E20*($F20-$K20)) -> 0 | I20: =(IF($J$3="Standard",$J$42,$J$43)/15*$E20)*$F20 -> 0 | J20: =IF(OR(Profile!$O$7="T3",Profile!$O$7="T4"),(($J$47/15)*$E20)*$F20,0) -> 0 | M20: =IF(OR($O$7="T3",$O$7="T4"),0,IF($H$23=0,0,$E20*(Budget!$G$66-Budget!$G$29+Budget!$G$19+Budget!$G$15)/$H$23/4/(1-$C$45))) -> 0 | O20: =IF(OR($O$7="T3",$O$7="T4"),0,(IF($P20<$R20,$P20,$R20))/4) -> 0 | P20: =IF(OR($O$7="T3",$O$7="T4"),0,IF($E20>$X20,$L20*4-$Y20,0)) -> 0 | Q20: =IF(OR($O$7="T3",$O$7="T4"),0,IF($E20=0,0,ROUND($L20*4/$E20,0))) -> 0 | R20: =IF(OR($O$7="T3",$O$7="T4"),0,$Q20*($E20-$X20)) -> 0 | S20: =IF(OR($O$7="T3",$O$7="T4"),0,ROUND(4*($F20-$K20)*$L20,0)) -> 0 | T20: =IF(OR($O$7="T3",$O$7="T4"),0,ROUND(4*$K20*$N20,0)) -> 0 | U20: =IF($F20-22>0,(($J$36/15)*$E20)*$F20,0) -> 0 | V20: =IF(OR($O$7="T3",$O$7="T4"),0,IF($K20-22>0,(($J$38/15)*$E20)*($K20-22),0)) -> 0 | W20: =IF(OR($O$7="T3",$O$7="T4"),0,$K20*$Y20) -> 0 | X20: =IF($E20<15,15*($E20/15),15) -> 0 | Y20: =IF(OR($O$7="T3",$O$7="T4"),0,($J$44/15)*$E20) -> 0
B21: Group G | C21: 3yo | G21: =IFERROR(IF($D21="L 2.5 Supplement",VLOOKUP($F21,Supp_2.4,IF($J$3="Standard",2,3),FALSE)/15*$E21,IF($D21="L 3.1 Supplement",VLOOKUP($F21,Supp_2.5,IF($J$3="Standard",2,3),FALSE)/15*$E21,IF($D21="L 3.2-3.6 Supplement",VLOOKUP($F21,Supp_3,IF($J$3="Standard",2,3),FALSE)/15*$E21,0))),0) -> 0 | H21: =IF(OR($O$7="T3",$O$7="T4"),$E21*$F21,$E21*($F21-$K21)) -> 0 | I21: =(IF($J$3="Standard",$J$42,$J$43)/15*$E21)*$F21 -> 0 | J21: =IF(OR(Profile!$O$7="T3",Profile!$O$7="T4"),(($J$47/15)*$E21)*$F21,0) -> 0 | M21: =IF(OR($O$7="T3",$O$7="T4"),0,IF($H$23=0,0,$E21*(Budget!$G$66-Budget!$G$29+Budget!$G$19+Budget!$G$15)/$H$23/4/(1-$C$45))) -> 0 | O21: =IF(OR($O$7="T3",$O$7="T4"),0,(IF($P21<$R21,$P21,$R21))/4) -> 0 | P21: =IF(OR($O$7="T3",$O$7="T4"),0,IF($E21>$X21,$L21*4-$Y21,0)) -> 0 | Q21: =IF(OR($O$7="T3",$O$7="T4"),0,IF($E21=0,0,ROUND($L21*4/$E21,0))) -> 0 | R21: =IF(OR($O$7="T3",$O$7="T4"),0,$Q21*($E21-$X21)) -> 0 | S21: =IF(OR($O$7="T3",$O$7="T4"),0,ROUND(4*($F21-$K21)*$L21,0)) -> 0 | T21: =IF(OR($O$7="T3",$O$7="T4"),0,ROUND(4*$K21*$N21,0)) -> 0 | U21: =IF($F21-22>0,(($J$36/15)*$E21)*$F21,0) -> 0 | V21: =IF(OR($O$7="T3",$O$7="T4"),0,IF($K21-22>0,(($J$38/15)*$E21)*($K21-22),0)) -> 0 | W21: =IF(OR($O$7="T3",$O$7="T4"),0,$K21*$Y21) -> 0 | X21: =IF($E21<15,15*($E21/15),15) -> 0 | Y21: =IF(OR($O$7="T3",$O$7="T4"),0,($J$44/15)*$E21) -> 0
B22: Group H | C22: 3yo | G22: =IFERROR(IF($D22="L 2.5 Supplement",VLOOKUP($F22,Supp_2.4,IF($J$3="Standard",2,3),FALSE)/15*$E22,IF($D22="L 3.1 Supplement",VLOOKUP($F22,Supp_2.5,IF($J$3="Standard",2,3),FALSE)/15*$E22,IF($D22="L 3.2-3.6 Supplement",VLOOKUP($F22,Supp_3,IF($J$3="Standard",2,3),FALSE)/15*$E22,0))),0) -> 0 | H22: =IF(OR($O$7="T3",$O$7="T4"),$E22*$F22,$E22*($F22-$K22)) -> 0 | I22: =(IF($J$3="Standard",$J$42,$J$43)/15*$E22)*$F22 -> 0 | J22: =IF(OR(Profile!$O$7="T3",Profile!$O$7="T4"),(($J$47/15)*$E22)*$F22,0) -> 0 | M22: =IF(OR($O$7="T3",$O$7="T4"),0,IF($H$23=0,0,$E22*(Budget!$G$66-Budget!$G$29+Budget!$G$19+Budget!$G$15)/$H$23/4/(1-$C$45))) -> 0 | O22: =IF(OR($O$7="T3",$O$7="T4"),0,(IF($P22<$R22,$P22,$R22))/4) -> 0 | P22: =IF(OR($O$7="T3",$O$7="T4"),0,IF($E22>$X22,$L22*4-$Y22,0)) -> 0 | Q22: =IF(OR($O$7="T3",$O$7="T4"),0,IF($E22=0,0,ROUND($L22*4/$E22,0))) -> 0 | R22: =IF(OR($O$7="T3",$O$7="T4"),0,$Q22*($E22-$X22)) -> 0 | S22: =IF(OR($O$7="T3",$O$7="T4"),0,ROUND(4*($F22-$K22)*$L22,0)) -> 0 | T22: =IF(OR($O$7="T3",$O$7="T4"),0,ROUND(4*$K22*$N22,0)) -> 0 | U22: =IF($F22-22>0,(($J$36/15)*$E22)*$F22,0) -> 0 | V22: =IF(OR($O$7="T3",$O$7="T4"),0,IF($K22-22>0,(($J$38/15)*$E22)*($K22-22),0)) -> 0 | W22: =IF(OR($O$7="T3",$O$7="T4"),0,$K22*$Y22) -> 0 | X22: =IF($E22<15,15*($E22/15),15) -> 0 | Y22: =IF(OR($O$7="T3",$O$7="T4"),0,($J$44/15)*$E22) -> 0
E23: Subtotals | F23: =SUM(F$19:F$22) -> 6 | G23: =SUM(G$19:G$22) -> 0 | H23: =SUM(H$19:H$22) -> 0 | I23: =SUM(I$19:I$22) -> 0 | J23: =SUM(J$19:J$22) -> 0 | U23: =SUM(U$19:U$22) -> 0 | V23: =SUM(V$19:V$22) -> 0 | W23: =SUM(W$19:W$22) -> 0
B25: Other Programs (i.e. Extended Care) | E25: Hours Per Week | F25: Enrolled Children | H25: Cost Units | J25: Term Fee | K25: Suggested Term Fee | Q25: Hourly Rate | S25: Fees Total
B26: Group I | C26: Other | H26: =$E26*($F26-$I26) -> 0 | K26: =IF($H$30=0,0,$E26*(Budget!$H$66-Budget!$H$29+Budget!$H$19+Budget!$H$15)/$H$30/4/(1-$C$45)) -> 0 | Q26: =IF($E26=0,0,ROUND($J26*4/$E26,0)) -> 0 | S26: =ROUND(4*($F26-$I26)*$J26,0) -> 0
B27: Group J | C27: Other | H27: =$E27*($F27-$I27) -> 0 | K27: =IF($H$30=0,0,$E27*(Budget!$H$66-Budget!$H$29+Budget!$H$19+Budget!$H$15)/$H$30/4/(1-$C$45)) -> 0 | Q27: =IF($E27=0,0,ROUND($J27*4/$E27,0)) -> 0 | S27: =ROUND(4*($F27-$I27)*$J27,0) -> 0
B28: Group K | C28: Other | H28: =$E28*($F28-$I28) -> 0 | K28: =IF($H$30=0,0,$E28*(Budget!$H$66-Budget!$H$29+Budget!$H$19+Budget!$H$15)/$H$30/4/(1-$C$45)) -> 0 | Q28: =IF($E28=0,0,ROUND($J28*4/$E28,0)) -> 0 | S28: =ROUND(4*($F28-$I28)*$J28,0) -> 0
B29: Group L | C29: Other | H29: =$E29*($F29-$I29) -> 0 | K29: =IF($H$30=0,0,$E29*(Budget!$H$66-Budget!$H$29+Budget!$H$19+Budget!$H$15)/$H$30/4/(1-$C$45)) -> 0 | Q29: =IF($E29=0,0,ROUND($J29*4/$E29,0)) -> 0 | S29: =ROUND(4*($F29-$I29)*$J29,0) -> 0
E30: Subtotals | F30: =SUM($F26:$F29) -> 0 | H30: =SUM($H26:$H29) -> 0
G32: Total | H32: =$H$16+$H$23+$H$30 -> 0
B33: Other Employee Costs | E33: 2025 Funding Rates
B35: Salary On Costs | E35: L 2.5 Supplement | J35: 2025 Rates
B36: Workcover | C36: 0.015 | E36: Standard (Grant - excl, GST) | F36: =IF(OR($O$7="T1",$O$7="T3"),'2025 Funding Rates'!$C$40,0) -> 282 | H36: Ratio Supplement - Standard | J36: =IF($O$7="T1",'2025 Funding Rates'!$C$36,IF($O$7="T2",'2025 Funding Rates'!$C$83,IF($O$7="T3",'2025 Funding Rates'!$C$119,IF($O$7="T4",'2025 Funding Rates'!$C$165)))) -> 571
B37: Superannuation | C37: 0.115 | E37: Rural (Grant - excl. GST) | F37: =IF(OR($O$7="T1",$O$7="T3"),'2025 Funding Rates'!$C$42,0) -> 349 | H37: No of children in group > 22 children
B38: Sick Leave | C38: 0.06 | H38: Ratio Supplement - KFS | J38: =IF($O$7="T1",'2025 Funding Rates'!$C$37,IF($O$7="T2",'2025 Funding Rates'!$C$84,0)) -> 0
B39: Long Service Leave | C39: 0.02 | E39: L 3.1 Supplement | H39: No of children with HCC in group > 22 children
B40: Pay Increases | C40: 0.015 | E40: Standard | F40: =IF(OR($O$7="T1",$O$7="T3"),'2025 Funding Rates'!$C$41,0) -> 494
B41: Accident Mark Up | C41: 0.004 | E41: Rural | F41: =IF(OR($O$7="T1",$O$7="T3"),'2025 Funding Rates'!$C$43,0) -> 609 | H41: Per Capita Funding Grants | J41: 4 YO Rates
B42: Professional Development | C42: 0.015 | H42: Standard | J42: =IF($O$7="T1",'2025 Funding Rates'!$C$27,IF($O$7="T2",'2025 Funding Rates'!$C$71,IF($O$7="T3",'2025 Funding Rates'!$C$110,IF($O$7="T4",'2025 Funding Rates'!$C$153)))) -> 4339
B43: Total | C43: =SUM($C$36:$C$42) -> 0.244 | E43: L 3.2-3.6 Supplement | H43: Rural | J43: =IF($O$7="T1",'2025 Funding Rates'!$C$28,IF($O$7="T2",'2025 Funding Rates'!$C$72,IF($O$7="T3",'2025 Funding Rates'!$C$111,IF($O$7="T4",'2025 Funding Rates'!$C$154)))) -> 5366
E44: Standard (Grant - excl, GST) | F44: =IF(OR($O$7="T1",$O$7="T3"),'2025 Funding Rates'!$C$44,0) -> 705 | H44: Kindergarten Fee Subsidy | J44: =IF(OR($O$7="T3",$O$7="T4"),0,'2025 Funding Rates'!$C$77) -> 2627
B45: Provision for Bad Debts | C45: 0.05 | E45: Rural (Grant - excl. GST) | F45: =IF(OR($O$7="T1",$O$7="T3"),'2025 Funding Rates'!$C$45,0) -> 874
H46: Free Kinder | J46: 4 YO Rates
H47: Standard | J47: =IF(OR($O$7="T3",$O$7="T4"),IF($O$7="T3",'2025 Funding Rates'!$C$113,'2025 Funding Rates'!$C$159),0) -> 0

Sheet Grants
B2: GRANTS CALCULATION TABLES | Q2: 2023-10-26
B4: Children UA Grant | C4: Metro | D4: Rural | E4: Small Rural | G4: Children Supp 2.5 | H4: Metro | I4: Rural | K4: Children Supp 3.1 | L4: Metro | M4: Rural | O4: Children Supp 3.2 - 3.6 | P4: Metro | Q4: Rural
C5: =Profile!$J$42 -> 4339 | D5: =Profile!$J$43 -> 5366 | E5: =$D$5 -> 5366 | H5: =Profile!$F$36 -> 282 | I5: =Profile!$F$37 -> 349 | L5: =Profile!$F$40 -> 494 | M5: =Profile!$F$41 -> 609 | P5: =Profile!$F$44 -> 705 | Q5: =Profile!$F$45 -> 874
B6: 1 | C6: =$B6*C$5 -> 4339 | D6: =$B6*D$5 -> 5366 | E6: =$B6*E$5 -> 5366 | G6: 1 | H6: =$G6*H$5 -> 282 | I6: =$G6*I$5 -> 349 | K6: 1 | L6: =$K6*L$5 -> 494 | M6: =$K6*M$5 -> 609 | O6: 1 | P6: =$O6*P$5 -> 705 | Q6: =$O6*Q$5 -> 874
B7: 2 | C7: =$B7*C$5 -> 8678 | D7: 10732 | E7: 10732 | G7: 2 | H7: =$G7*H$5 -> 564 | I7: 698 | K7: 2 | L7: =$K7*L$5 -> 988 | M7: 1218 | O7: 2 | P7: =$O7*P$5 -> 1410 | Q7: 1748
B8: 3 | C8: 13017 | D8: 16098 | E8: 16098 | G8: 3 | H8: 846 | I8: 1047 | K8: 3 | L8: 1482 | M8: 1827 | O8: 3 | P8: 2115 | Q8: 2622
B9: 4 | C9: 17356 | D9: 21464 | E9: 21464 | G9: 4 | H9: 1128 | I9: 1396 | K9: 4 | L9: 1976 | M9: 2436 | O9: 4 | P9: 2820 | Q9: 3496
B10: 5 | C10: 21695 | D10: 26830 | E10: 26830 | G10: 5 | H10: 1410 | I10: 1745 | K10: 5 | L10: 2470 | M10: 3045 | O10: 5 | P10: 3525 | Q10: 4370
B11: 6 | C11: 26034 | D11: 32196 | E11: 32196 | G11: 6 | H11: 1692 | I11: 2094 | K11: 6 | L11: 2964 | M11: 3654 | O11: 6 | P11: 4230 | Q11: 5244
B12: 7 | C12: 30373 | D12: 37562 | E12: 37562 | G12: 7 | H12: 1974 | I12: 2443 | K12: 7 | L12: 3458 | M12: 4263 | O12: 7 | P12: 4935 | Q12: 6118
B13: 8 | C13: 34712 | D13: 42928 | E13: 42928 | G13: 8 | H13: 2256 | I13: 2792 | K13: 8 | L13: 3952 | M13: 4872 | O13: 8 | P13: 5640 | Q13: 6992
B14: 9 | C14: 39051 | D14: 48294 | E14: 48294 | G14: 9 | H14: 2538 | I14: 3141 | K14: 9 | L14: 4446 | M14: 5481 | O14: 9 | P14: 6345 | Q14: 7866
B15: 10 | C15: 43390 | D15: 53660 | E15: 53660 | G15: 10 | H15: 2820 | I15: 3490 | K15: 10 | L15: 4940 | M15: 6090 | O15: 10 | P15: 7050 | Q15: 8740
B16: 11 | C16: 47729 | D16: 59026 | E16: 59026 | G16: 11 | H16: 3102 | I16: 3839 | K16: 11 | L16: 5434 | M16: 6699 | O16: 11 | P16: 7755 | Q16: 9614
B17: 12 | C17: 52068 | D17: 64392 | E17: 64392 | G17: 12 | H17: 3384 | I17: 4188 | K17: 12 | L17: 5928 | M17: 7308 | O17: 12 | P17: 8460 | Q17: 10488
B18: 13 | C18: 56407 | D18: 69758 | E18: 69758 | G18: 13 | H18: 3666 | I18: 4537 | K18: 13 | L18: 6422 | M18: 7917 | O18: 13 | P18: 9165 | Q18: 11362
B19: 14 | C19: 60746 | D19: 75124 | E19: 75124 | G19: 14 | H19: 3948 | I19: 4886 | K19: 14 | L19: 6916 | M19: 8526 | O19: 14 | P19: 9870 | Q19: 12236
B20: 15 | C20: 65085 | D20: 80490 | E20: 80490 | G20: 15 | H20: 4230 | I20: 5235 | K20: 15 | L20: 7410 | M20: 9135 | O20: 15 | P20: 10575 | Q20: 13110
B21: 16 | C21: 69424 | D21: 85856 | E21: 85856 | G21: 16 | H21: 4512 | I21: 5584 | K21: 16 | L21: 7904 | M21: 9744 | O21: 16 | P21: 11280 | Q21: 13984
B22: 17 | C22: 73763 | D22: 91222 | E22: 91222 | G22: 17 | H22: 4794 | I22: 5933 | K22: 17 | L22: 8398 | M22: 10353 | O22: 17 | P22: 11985 | Q22: 14858
B23: 18 | C23: 78102 | D23: 96588 | E23: 96588 | G23: 18 | H23: 5076 | I23: 6282 | K23: 18 | L23: 8892 | M23: 10962 | O23: 18 | P23: 12690 | Q23: 15732
B24: 19 | C24: 82441 | D24: 101954 | E24: =$B24*D$5 -> 101954 | G24: 19 | H24: 5358 | I24: 6631 | K24: 19 | L24: 9386 | M24: 11571 | O24: 19 | P24: 13395 | Q24: 16606
B25: 20 | C25: 86780 | D25: 107320 | E25: 107320 | G25: 20 | H25: 5640 | I25: 6980 | K25: 20 | L25: 9880 | M25: 12180 | O25: 20 | P25: 14100 | Q25: 17480
B26: 21 | C26: 91119 | D26: 112686 | E26: 112686 | G26: 21 | H26: 5922 | I26: 7329 | K26: 21 | L26: 10374 | M26: 12789 | O26: 21 | P26: 14805 | Q26: 18354
B27: 22 | C27: 95458 | D27: 118052 | E27: 118052 | G27: 22 | H27: 6204 | I27: 7678 | K27: 22 | L27: 10868 | M27: 13398 | O27: 22 | P27: 15510 | Q27: 19228
B28: 23 | C28: 99797 | D28: 123418 | E28: 123418 | G28: 23 | H28: 6486 | I28: 8027 | K28: 23 | L28: 11362 | M28: 14007 | O28: 23 | P28: 16215 | Q28: 20102
B29: 24 | C29: 104136 | D29: 128784 | E29: 128784 | G29: 24 | H29: 6768 | I29: 8376 | K29: 24 | L29: 11856 | M29: 14616 | O29: 24 | P29: 16920 | Q29: 20976
B30: 25 | C30: 108475 | D30: 134150 | E30: 134150 | G30: 25 | H30: 7050 | I30: 8725 | K30: 25 | L30: 12350 | M30: 15225 | O30: 25 | P30: 17625 | Q30: 21850
B31: 26 | C31: 112814 | D31: 139516 | E31: 139516 | G31: 26 | H31: 7332 | I31: 9074 | K31: 26 | L31: 12844 | M31: 15834 | O31: 26 | P31: 18330 | Q31: 22724
B32: 27 | C32: 117153 | D32: 144882 | E32: 144882 | G32: 27 | H32: 7614 | I32: 9423 | K32: 27 | L32: 13338 | M32: 16443 | O32: 27 | P32: 19035 | Q32: 23598
B33: 28 | C33: 121492 | D33: 150248 | E33: 150248 | G33: 28 | H33: 7896 | I33: 9772 | K33: 28 | L33: 13832 | M33: 17052 | O33: 28 | P33: 19740 | Q33: 24472
B34: 29 | C34: 125831 | D34: 155614 | E34: 155614 | G34: 29 | H34: 8178 | I34: 10121 | K34: 29 | L34: 14326 | M34: 17661 | O34: 29 | P34: 20445 | Q34: 25346
B35: 30 | C35: 130170 | D35: 160980 | E35: 160980 | G35: 30 | H35: 8460 | I35: 10470 | K35: 30 | L35: 14820 | M35: 18270 | O35: 30 | P35: 21150 | Q35: 26220
B36: 31 | C36: 134509 | D36: 166346 | E36: 166346 | G36: 31 | H36: 8742 | I36: 10819 | K36: 31 | L36: 15314 | M36: 18879 | O36: 31 | P36: 21855 | Q36: 27094
B37: 32 | C37: 138848 | D37: 171712 | E37: 171712 | G37: 32 | H37: 9024 | I37: 11168 | K37: 32 | L37: 15808 | M37: 19488 | O37: 32 | P37: 22560 | Q37: 27968
B38: 33 | C38: 143187 | D38: 177078 | E38: 177078 | G38: 33 | H38: 9306 | I38: 11517 | K38: 33 | L38: 16302 | M38: 20097 | O38: 33 | P38: 23265 | Q38: 28842
B39: 34 | C39: 147526 | D39: 182444 | E39: 182444 | G39: 34 | H39: 9588 | I39: 11866 | K39: 34 | L39: 16796 | M39: 20706 | O39: 34 | P39: =$O39*P$5 -> 23970 | Q39: 29716
B40: 35 | C40: 151865 | D40: 187810 | E40: 187810 | G40: 35 | H40: 9870 | I40: 12215 | K40: 35 | L40: 17290 | M40: 21315 | O40: 35 | P40: 24675 | Q40: 30590
B41: 36 | C41: 156204 | D41: 193176 | E41: 193176 | G41: 36 | H41: 10152 | I41: 12564 | K41: 36 | L41: 17784 | M41: 21924 | O41: 36 | P41: 25380 | Q41: 31464
B42: 37 | C42: 160543 | D42: 198542 | E42: 198542 | G42: 37 | H42: 10434 | I42: 12913 | K42: 37 | L42: 18278 | M42: 22533 | O42: 37 | P42: 26085 | Q42: 32338
B43: 38 | C43: 164882 | D43: 203908 | E43: 203908 | G43: 38 | H43: 10716 | I43: 13262 | K43: 38 | L43: 18772 | M43: 23142 | O43: 38 | P43: 26790 | Q43: 33212
B44: 39 | C44: 169221 | D44: 209274 | E44: 209274 | G44: 39 | H44: 10998 | I44: 13611 | K44: 39 | L44: 19266 | M44: 23751 | O44: 39 | P44: 27495 | Q44: 34086
B45: 40 | C45: 173560 | D45: 214640 | E45: 214640 | G45: 40 | H45: 11280 | I45: 13960 | K45: 40 | L45: 19760 | M45: 24360 | O45: 40 | P45: 28200 | Q45: 34960
B46: 41 | C46: 177899 | D46: 220006 | E46: 220006 | G46: 41 | H46: 11562 | I46: 14309 | K46: 41 | L46: 20254 | M46: 24969 | O46: 41 | P46: 28905 | Q46: 35834
B47: 42 | C47: 182238 | D47: 225372 | E47: 225372 | G47: 42 | H47: 11844 | I47: 14658 | K47: 42 | L47: 20748 | M47: 25578 | O47: 42 | P47: 29610 | Q47: 36708
B48: 43 | C48: 186577 | D48: 230738 | E48: 230738 | G48: 43 | H48: 12126 | I48: 15007 | K48: 43 | L48: 21242 | M48: 26187 | O48: 43 | P48: 30315 | Q48: 37582
B49: 44 | C49: 190916 | D49: 236104 | E49: 236104 | G49: 44 | H49: 12408 | I49: 15356 | K49: 44 | L49: 21736 | M49: 26796 | O49: 44 | P49: 31020 | Q49: 38456
B50: 45 | C50: 195255 | D50: 241470 | E50: 241470 | G50: 45 | H50: 12690 | I50: 15705 | K50: 45 | L50: 22230 | M50: 27405 | O50: 45 | P50: 31725 | Q50: 39330
B51: 46 | C51: 199594 | D51: =$D$50+($B51-45)*C$5 -> 245809 | E51: =$D51 -> 245809 | G51: 46 | H51: 12972 | I51: 16054 | K51: 46 | L51: 22724 | M51: =$M$50+($K51-45)*L$5 -> 27899 | O51: 46 | P51: 32430 | Q51: 40204
B52: 47 | C52: 203933 | D52: 250148 | E52: =$D52 -> 250148 | G52: 47 | H52: 13254 | I52: 16403 | K52: 47 | L52: =$K52*L$5 -> 23218 | M52: 28393 | O52: 47 | P52: 33135 | Q52: 41078
B53: 48 | C53: 208272 | D53: 254487 | E53: 254487 | G53: 48 | H53: 13536 | I53: 16752 | K53: 48 | L53: 23712 | M53: 28887 | O53: 48 | P53: 33840 | Q53: 41952
B54: 49 | C54: 212611 | D54: 258826 | E54: 258826 | G54: 49 | H54: 13818 | I54: 17101 | K54: 49 | L54: 24206 | M54: 29381 | O54: 49 | P54: 34545 | Q54: 42826
B55: 50 | C55: 216950 | D55: 263165 | E55: 263165 | G55: 50 | H55: 14100 | I55: 17450 | K55: 50 | L55: 24700 | M55: 29875 | O55: 50 | P55: 35250 | Q55: 43700
B56: 51 | C56: 221289 | D56: 267504 | E56: 267504 | G56: 51 | H56: 14382 | I56: 17799 | K56: 51 | L56: 25194 | M56: 30369 | O56: 51 | P56: 35955 | Q56: 44574
B57: 52 | C57: 225628 | D57: 271843 | E57: 271843 | G57: 52 | H57: 14664 | I57: 18148 | K57: 52 | L57: 25688 | M57: 30863 | O57: 52 | P57: 36660 | Q57: 45448
B58: 53 | C58: 229967 | D58: 276182 | E58: 276182 | G58: 53 | H58: 14946 | I58: 18497 | K58: 53 | L58: 26182 | M58: 31357 | O58: 53 | P58: 37365 | Q58: 46322
B59: 54 | C59: 234306 | D59: 280521 | E59: 280521 | G59: 54 | H59: 15228 | I59: 18846 | K59: 54 | L59: 26676 | M59: 31851 | O59: 54 | P59: 38070 | Q59: 47196
B60: 55 | C60: 238645 | D60: 284860 | E60: 284860 | G60: 55 | H60: 15510 | I60: 19195 | K60: 55 | L60: 27170 | M60: 32345 | O60: 55 | P60: 38775 | Q60: 48070
B61: 56 | C61: 242984 | D61: 289199 | E61: 289199 | G61: 56 | H61: 15792 | I61: 19544 | K61: 56 | L61: 27664 | M61: 32839 | O61: 56 | P61: 39480 | Q61: 48944
B62: 57 | C62: 247323 | D62: 293538 | E62: 293538 | G62: 57 | H62: 16074 | I62: 19893 | K62: 57 | L62: 28158 | M62: 33333 | O62: 57 | P62: 40185 | Q62: 49818
B63: 58 | C63: 251662 | D63: 297877 | E63: 297877 | G63: 58 | H63: 16356 | I63: 20242 | K63: 58 | L63: 28652 | M63: 33827 | O63: 58 | P63: 40890 | Q63: 50692
B64: 59 | C64: 256001 | D64: 302216 | E64: 302216 | G64: 59 | H64: 16638 | I64: 20591 | K64: 59 | L64: 29146 | M64: 34321 | O64: 59 | P64: 41595 | Q64: 51566
B65: 60 | C65: 260340 | D65: 306555 | E65: 306555 | G65: 60 | H65: 16920 | I65: 20940 | K65: 60 | L65: 29640 | M65: 34815 | O65: 60 | P65: 42300 | Q65: 52440
B66: 61 | C66: 264679 | D66: 310894 | E66: 310894 | G66: 61 | H66: 17202 | I66: 21289 | K66: 61 | L66: 30134 | M66: 35309 | O66: 61 | P66: 43005 | Q66: 53314
B67: 62 | C67: 269018 | D67: 315233 | E67: 315233 | G67: 62 | H67: 17484 | I67: 21638 | K67: 62 | L67: 30628 | M67: 35803 | O67: 62 | P67: 43710 | Q67: 54188
B68: 63 | C68: 273357 | D68: 319572 | E68: 319572 | G68: 63 | H68: 17766 | I68: 21987 | K68: 63 | L68: 31122 | M68: 36297 | O68: 63 | P68: 44415 | Q68: 55062
B69: 64 | C69: 277696 | D69: 323911 | E69: 323911 | G69: 64 | H69: 18048 | I69: 22336 | K69: 64 | L69: 31616 | M69: 36791 | O69: 64 | P69: 45120 | Q69: 55936
B70: 65 | C70: 282035 | D70: 328250 | E70: 328250 | G70: 65 | H70: 18330 | I70: 22685 | K70: 65 | L70: 32110 | M70: 37285 | O70: 65 | P70: 45825 | Q70: 56810
B71: 66 | C71: =$B71*C$5 -> 286374 | D71: 332589 | E71: 332589 | G71: 66 | H71: =$G71*H$5 -> 18612 | I71: 23034 | K71: 66 | L71: 32604 | M71: 37779 | O71: 66 | P71: =$O71*P$5 -> 46530 | Q71: 57684
B72: 67 | C72: 290713 | D72: 336928 | E72: 336928 | G72: 67 | H72: 18894 | I72: 23383 | K72: 67 | L72: 33098 | M72: 38273 | O72: 67 | P72: 47235 | Q72: 58558
B73: 68 | C73: 295052 | D73: 341267 | E73: 341267 | G73: 68 | H73: 19176 | I73: 23732 | K73: 68 | L73: 33592 | M73: 38767 | O73: 68 | P73: 47940 | Q73: 59432
B74: 69 | C74: 299391 | D74: 345606 | E74: 345606 | G74: 69 | H74: 19458 | I74: 24081 | K74: 69 | L74: 34086 | M74: 39261 | O74: 69 | P74: 48645 | Q74: 60306
B75: 70 | C75: 303730 | D75: 349945 | E75: 349945 | G75: 70 | H75: 19740 | I75: 24430 | K75: 70 | L75: 34580 | M75: 39755 | O75: 70 | P75: 49350 | Q75: 61180
B76: 71 | C76: 308069 | D76: 354284 | E76: 354284 | G76: 71 | H76: 20022 | I76: 24779 | K76: 71 | L76: 35074 | M76: 40249 | O76: 71 | P76: 50055 | Q76: 62054
B77: 72 | C77: 312408 | D77: 358623 | E77: 358623 | G77: 72 | H77: 20304 | I77: 25128 | K77: 72 | L77: 35568 | M77: 40743 | O77: 72 | P77: 50760 | Q77: 62928
B78: 73 | C78: 316747 | D78: 362962 | E78: 362962 | G78: 73 | H78: 20586 | I78: 25477 | K78: 73 | L78: 36062 | M78: 41237 | O78: 73 | P78: 51465 | Q78: 63802
B79: 74 | C79: 321086 | D79: 367301 | E79: 367301 | G79: 74 | H79: 20868 | I79: 25826 | K79: 74 | L79: 36556 | M79: 41731 | O79: 74 | P79: 52170 | Q79: 64676
B80: 75 | C80: 325425 | D80: 371640 | E80: 371640 | G80: 75 | H80: 21150 | I80: 26175 | K80: 75 | L80: 37050 | M80: 42225 | O80: 75 | P80: 52875 | Q80: 65550
B81: 76 | C81: 329764 | D81: 375979 | E81: 375979 | G81: 76 | H81: 21432 | I81: 26524 | K81: 76 | L81: 37544 | M81: 42719 | O81: 76 | P81: 53580 | Q81: 66424
B82: 77 | C82: 334103 | D82: 380318 | E82: 380318 | G82: 77 | H82: 21714 | I82: 26873 | K82: 77 | L82: 38038 | M82: 43213 | O82: 77 | P82: 54285 | Q82: 67298
B83: 78 | C83: 338442 | D83: =$D$50+($B83-45)*C$5 -> 384657 | E83: 384657 | G83: 78 | H83: 21996 | I83: 27222 | K83: 78 | L83: 38532 | M83: =$M$50+($K83-45)*L$5 -> 43707 | O83: 78 | P83: 54990 | Q83: 68172
B84: 79 | C84: 342781 | D84: 388996 | E84: 388996 | G84: 79 | H84: 22278 | I84: 27571 | K84: 79 | L84: 39026 | M84: 44201 | O84: 79 | P84: 55695 | Q84: 69046
B85: 80 | C85: 347120 | D85: 393335 | E85: 393335 | G85: 80 | H85: 22560 | I85: 27920 | K85: 80 | L85: 39520 | M85: 44695 | O85: 80 | P85: 56400 | Q85: 69920
B86: 81 | C86: 351459 | D86: 397674 | E86: 397674 | G86: 81 | H86: 22842 | I86: 28269 | K86: 81 | L86: 40014 | M86: 45189 | O86: 81 | P86: 57105 | Q86: 70794
B87: 82 | C87: 355798 | D87: 402013 | E87: 402013 | G87: 82 | H87: 23124 | I87: 28618 | K87: 82 | L87: 40508 | M87: 45683 | O87: 82 | P87: 57810 | Q87: 71668
B88: 83 | C88: 360137 | D88: 406352 | E88: 406352 | G88: 83 | H88: 23406 | I88: 28967 | K88: 83 | L88: 41002 | M88: 46177 | O88: 83 | P88: 58515 | Q88: 72542
B89: 84 | C89: 364476 | D89: 410691 | E89: 410691 | G89: 84 | H89: 23688 | I89: 29316 | K89: 84 | L89: 41496 | M89: 46671 | O89: 84 | P89: 59220 | Q89: 73416
B90: 85 | C90: 368815 | D90: 415030 | E90: 415030 | G90: 85 | H90: 23970 | I90: 29665 | K90: 85 | L90: 41990 | M90: 47165 | O90: 85 | P90: 59925 | Q90: 74290
B91: 86 | C91: 373154 | D91: 419369 | E91: 419369 | G91: 86 | H91: 24252 | I91: 30014 | K91: 86 | L91: 42484 | M91: 47659 | O91: 86 | P91: 60630 | Q91: 75164
B92: 87 | C92: 377493 | D92: 423708 | E92: 423708 | G92: 87 | H92: 24534 | I92: 30363 | K92: 87 | L92: 42978 | M92: 48153 | O92: 87 | P92: 61335 | Q92: 76038
B93: 88 | C93: 381832 | D93: 428047 | E93: 428047 | G93: 88 | H93: 24816 | I93: 30712 | K93: 88 | L93: 43472 | M93: 48647 | O93: 88 | P93: 62040 | Q93: 76912
B94: 89 | C94: 386171 | D94: 432386 | E94: 432386 | G94: 89 | H94: 25098 | I94: 31061 | K94: 89 | L94: 43966 | M94: 49141 | O94: 89 | P94: 62745 | Q94: 77786
B95: 90 | C95: 390510 | D95: 436725 | E95: 436725 | G95: 90 | H95: 25380 | I95: 31410 | K95: 90 | L95: 44460 | M95: 49635 | O95: 90 | P95: 63450 | Q95: 78660
B96: 91 | C96: 394849 | D96: 441064 | E96: 441064 | G96: 91 | H96: 25662 | I96: 31759 | K96: 91 | L96: 44954 | M96: 50129 | O96: 91 | P96: 64155 | Q96: 79534
B97: 92 | C97: 399188 | D97: 445403 | E97: 445403 | G97: 92 | H97: 25944 | I97: 32108 | K97: 92 | L97: 45448 | M97: 50623 | O97: 92 | P97: 64860 | Q97: 80408
B98: 93 | C98: 403527 | D98: 449742 | E98: 449742 | G98: 93 | H98: 26226 | I98: 32457 | K98: 93 | L98: 45942 | M98: 51117 | O98: 93 | P98: 65565 | Q98: 81282
B99: 94 | C99: 407866 | D99: 454081 | E99: 454081 | G99: 94 | H99: 26508 | I99: 32806 | K99: 94 | L99: 46436 | M99: 51611 | O99: 94 | P99: 66270 | Q99: 82156
B100: 95 | C100: 412205 | D100: 458420 | E100: 458420 | G100: 95 | H100: 26790 | I100: 33155 | K100: 95 | L100: 46930 | M100: 52105 | O100: 95 | P100: 66975 | Q100: 83030
B101: 96 | C101: 416544 | D101: 462759 | E101: 462759 | G101: 96 | H101: 27072 | I101: 33504 | K101: 96 | L101: 47424 | M101: 52599 | O101: 96 | P101: 67680 | Q101: 83904
B102: 97 | C102: 420883 | D102: 467098 | E102: 467098 | G102: 97 | H102: 27354 | I102: 33853 | K102: 97 | L102: 47918 | M102: 53093 | O102: 97 | P102: 68385 | Q102: 84778
B103: 98 | C103: 425222 | D103: 471437 | E103: 471437 | G103: 98 | H103: 27636 | I103: 34202 | K103: 98 | L103: 48412 | M103: 53587 | O103: 98 | P103: =$O103*P$5 -> 69090 | Q103: 85652
B104: 99 | C104: 429561 | D104: 475776 | E104: 475776 | G104: 99 | H104: 27918 | I104: 34551 | K104: 99 | L104: 48906 | M104: 54081 | O104: 99 | P104: 69795 | Q104: 86526
B105: 100 | C105: 433900 | D105: 480115 | E105: 480115 | G105: 100 | H105: 28200 | I105: 34900 | K105: 100 | L105: 49400 | M105: 54575 | O105: 100 | P105: 70500 | Q105: 87400
B106: 101 | C106: 438239 | D106: 484454 | E106: 484454 | G106: 101 | H106: 28482 | I106: 35249 | K106: 101 | L106: 49894 | M106: 55069 | O106: 101 | P106: 71205 | Q106: 88274
B107: 102 | C107: 442578 | D107: 488793 | E107: 488793 | G107: 102 | H107: 28764 | I107: 35598 | K107: 102 | L107: 50388 | M107: 55563 | O107: 102 | P107: 71910 | Q107: 89148
B108: 103 | C108: 446917 | D108: 493132 | E108: 493132 | G108: 103 | H108: 29046 | I108: 35947 | K108: 103 | L108: 50882 | M108: 56057 | O108: 103 | P108: 72615 | Q108: 90022
B109: 104 | C109: 451256 | D109: 497471 | E109: 497471 | G109: 104 | H109: 29328 | I109: 36296 | K109: 104 | L109: 51376 | M109: 56551 | O109: 104 | P109: 73320 | Q109: 90896
B110: 105 | C110: 455595 | D110: 501810 | E110: 501810 | G110: 105 | H110: 29610 | I110: 36645 | K110: 105 | L110: 51870 | M110: 57045 | O110: 105 | P110: 74025 | Q110: 91770
B111: 106 | C111: 459934 | D111: 506149 | E111: 506149 | G111: 106 | H111: 29892 | I111: 36994 | K111: 106 | L111: 52364 | M111: 57539 | O111: 106 | P111: 74730 | Q111: 92644
B112: 107 | C112: 464273 | D112: 510488 | E112: 510488 | G112: 107 | H112: 30174 | I112: 37343 | K112: 107 | L112: 52858 | M112: 58033 | O112: 107 | P112: 75435 | Q112: 93518
B113: 108 | C113: 468612 | D113: 514827 | E113: 514827 | G113: 108 | H113: 30456 | I113: 37692 | K113: 108 | L113: 53352 | M113: 58527 | O113: 108 | P113: 76140 | Q113: 94392
B114: 109 | C114: 472951 | D114: 519166 | E114: 519166 | G114: 109 | H114: 30738 | I114: 38041 | K114: 109 | L114: 53846 | M114: 59021 | O114: 109 | P114: 76845 | Q114: 95266
B115: 110 | C115: 477290 | D115: =$D$50+($B115-45)*C$5 -> 523505 | E115: 523505 | G115: 110 | H115: 31020 | I115: 38390 | K115: 110 | L115: 54340 | M115: =$M$50+($K115-45)*L$5 -> 59515 | O115: 110 | P115: 77550 | Q115: 96140
B116: 111 | C116: 481629 | D116: 527844 | E116: =$D116 -> 527844 | G116: 111 | H116: 31302 | I116: 38739 | K116: 111 | L116: =$K116*L$5 -> 54834 | M116: 60009 | O116: 111 | P116: 78255 | Q116: 97014
B117: 112 | C117: 485968 | D117: 532183 | E117: 532183 | G117: 112 | H117: 31584 | I117: 39088 | K117: 112 | L117: 55328 | M117: 60503 | O117: 112 | P117: 78960 | Q117: 97888
B118: 113 | C118: 490307 | D118: 536522 | E118: 536522 | G118: 113 | H118: 31866 | I118: 39437 | K118: 113 | L118: 55822 | M118: 60997 | O118: 113 | P118: 79665 | Q118: 98762
B119: 114 | C119: 494646 | D119: 540861 | E119: 540861 | G119: 114 | H119: 32148 | I119: 39786 | K119: 114 | L119: 56316 | M119: 61491 | O119: 114 | P119: 80370 | Q119: 99636
B120: 115 | C120: 498985 | D120: 545200 | E120: 545200 | G120: 115 | H120: 32430 | I120: 40135 | K120: 115 | L120: 56810 | M120: 61985 | O120: 115 | P120: 81075 | Q120: 100510
B121: 116 | C121: 503324 | D121: 549539 | E121: 549539 | G121: 116 | H121: 32712 | I121: 40484 | K121: 116 | L121: 57304 | M121: 62479 | O121: 116 | P121: 81780 | Q121: 101384
B122: 117 | C122: 507663 | D122: 553878 | E122: 553878 | G122: 117 | H122: 32994 | I122: 40833 | K122: 117 | L122: 57798 | M122: 62973 | O122: 117 | P122: 82485 | Q122: 102258
B123: 118 | C123: 512002 | D123: 558217 | E123: 558217 | G123: 118 | H123: 33276 | I123: 41182 | K123: 118 | L123: 58292 | M123: 63467 | O123: 118 | P123: 83190 | Q123: 103132
B124: 119 | C124: 516341 | D124: 562556 | E124: 562556 | G124: 119 | H124: 33558 | I124: 41531 | K124: 119 | L124: 58786 | M124: 63961 | O124: 119 | P124: 83895 | Q124: 104006
B125: 120 | C125: 520680 | D125: 566895 | E125: 566895 | G125: 120 | H125: 33840 | I125: 41880 | K125: 120 | L125: 59280 | M125: 64455 | O125: 120 | P125: 84600 | Q125: 104880
B126: 121 | C126: 525019 | D126: 571234 | E126: 571234 | G126: 121 | H126: 34122 | I126: 42229 | K126: 121 | L126: 59774 | M126: 64949 | O126: 121 | P126: 85305 | Q126: 105754
B127: 122 | C127: 529358 | D127: 575573 | E127: 575573 | G127: 122 | H127: 34404 | I127: 42578 | K127: 122 | L127: 60268 | M127: 65443 | O127: 122 | P127: 86010 | Q127: 106628
B128: 123 | C128: 533697 | D128: 579912 | E128: 579912 | G128: 123 | H128: 34686 | I128: 42927 | K128: 123 | L128: 60762 | M128: 65937 | O128: 123 | P128: 86715 | Q128: 107502
B129: 124 | C129: 538036 | D129: 584251 | E129: 584251 | G129: 124 | H129: 34968 | I129: 43276 | K129: 124 | L129: 61256 | M129: 66431 | O129: 124 | P129: 87420 | Q129: 108376
B130: 125 | C130: 542375 | D130: 588590 | E130: 588590 | G130: 125 | H130: 35250 | I130: 43625 | K130: 125 | L130: 61750 | M130: 66925 | O130: 125 | P130: 88125 | Q130: 109250
B131: 126 | C131: 546714 | D131: 592929 | E131: 592929 | G131: 126 | H131: 35532 | I131: 43974 | K131: 126 | L131: 62244 | M131: 67419 | O131: 126 | P131: 88830 | Q131: 110124
B132: 127 | C132: 551053 | D132: 597268 | E132: 597268 | G132: 127 | H132: 35814 | I132: 44323 | K132: 127 | L132: 62738 | M132: 67913 | O132: 127 | P132: 89535 | Q132: 110998
B133: 128 | C133: 555392 | D133: 601607 | E133: 601607 | G133: 128 | H133: 36096 | I133: 44672 | K133: 128 | L133: 63232 | M133: 68407 | O133: 128 | P133: 90240 | Q133: 111872
B134: 129 | C134: 559731 | D134: 605946 | E134: 605946 | G134: 129 | H134: 36378 | I134: 45021 | K134: 129 | L134: 63726 | M134: 68901 | O134: 129 | P134: 90945 | Q134: 112746
B135: 130 | C135: =$B135*C$5 -> 564070 | D135: 610285 | E135: 610285 | G135: 130 | H135: =$G135*H$5 -> 36660 | I135: 45370 | K135: 130 | L135: 64220 | M135: 69395 | O135: 130 | P135: =$O135*P$5 -> 91650 | Q135: 113620
B136: 131 | C136: 568409 | D136: 614624 | E136: 614624 | G136: 131 | H136: 36942 | I136: 45719 | K136: 131 | L136: 64714 | M136: 69889 | O136: 131 | P136: 92355 | Q136: 114494
B137: 132 | C137: 572748 | D137: 618963 | E137: 618963 | G137: 132 | H137: 37224 | I137: 46068 | K137: 132 | L137: 65208 | M137: 70383 | O137: 132 | P137: 93060 | Q137: 115368
B138: 133 | C138: 577087 | D138: 623302 | E138: 623302 | G138: 133 | H138: 37506 | I138: 46417 | K138: 133 | L138: 65702 | M138: 70877 | O138: 133 | P138: 93765 | Q138: 116242
B139: 134 | C139: 581426 | D139: 627641 | E139: 627641 | G139: 134 | H139: 37788 | I139: 46766 | K139: 134 | L139: 66196 | M139: 71371 | O139: 134 | P139: 94470 | Q139: 117116
B140: 135 | C140: 585765 | D140: 631980 | E140: 631980 | G140: 135 | H140: 38070 | I140: 47115 | K140: 135 | L140: 66690 | M140: 71865 | O140: 135 | P140: 95175 | Q140: 117990
B141: 136 | C141: 590104 | D141: 636319 | E141: 636319 | G141: 136 | H141: 38352 | I141: 47464 | K141: 136 | L141: 67184 | M141: 72359 | O141: 136 | P141: 95880 | Q141: 118864
B142: 137 | C142: 594443 | D142: 640658 | E142: 640658 | G142: 137 | H142: 38634 | I142: 47813 | K142: 137 | L142: 67678 | M142: 72853 | O142: 137 | P142: 96585 | Q142: 119738
B143: 138 | C143: 598782 | D143: 644997 | E143: 644997 | G143: 138 | H143: 38916 | I143: 48162 | K143: 138 | L143: 68172 | M143: 73347 | O143: 138 | P143: 97290 | Q143: 120612
B144: 139 | C144: 603121 | D144: 649336 | E144: 649336 | G144: 139 | H144: 39198 | I144: 48511 | K144: 139 | L144: 68666 | M144: 73841 | O144: 139 | P144: 97995 | Q144: 121486
B145: 140 | C145: 607460 | D145: 653675 | E145: 653675 | G145: 140 | H145: 39480 | I145: 48860 | K145: 140 | L145: 69160 | M145: 74335 | O145: 140 | P145: 98700 | Q145: 122360
B146: 141 | C146: 611799 | D146: 658014 | E146: 658014 | G146: 141 | H146: 39762 | I146: 49209 | K146: 141 | L146: 69654 | M146: 74829 | O146: 141 | P146: 99405 | Q146: 123234
B147: 142 | C147: 616138 | D147: =$D$50+($B147-45)*C$5 -> 662353 | E147: 662353 | G147: 142 | H147: 40044 | I147: 49558 | K147: 142 | L147: 70148 | M147: =$M$50+($K147-45)*L$5 -> 75323 | O147: 142 | P147: 100110 | Q147: 124108
B148: 143 | C148: 620477 | D148: 666692 | E148: 666692 | G148: 143 | H148: 40326 | I148: 49907 | K148: 143 | L148: 70642 | M148: 75817 | O148: 143 | P148: 100815 | Q148: 124982
B149: 144 | C149: 624816 | D149: 671031 | E149: 671031 | G149: 144 | H149: 40608 | I149: 50256 | K149: 144 | L149: 71136 | M149: 76311 | O149: 144 | P149: 101520 | Q149: 125856
B150: 145 | C150: 629155 | D150: 675370 | E150: 675370 | G150: 145 | H150: 40890 | I150: 50605 | K150: 145 | L150: 71630 | M150: 76805 | O150: 145 | P150: 102225 | Q150: 126730
B151: 146 | C151: 633494 | D151: 679709 | E151: 679709 | G151: 146 | H151: 41172 | I151: 50954 | K151: 146 | L151: 72124 | M151: 77299 | O151: 146 | P151: 102930 | Q151: 127604
B152: 147 | C152: 637833 | D152: 684048 | E152: 684048 | G152: 147 | H152: 41454 | I152: 51303 | K152: 147 | L152: 72618 | M152: 77793 | O152: 147 | P152: 103635 | Q152: 128478
B153: 148 | C153: 642172 | D153: 688387 | E153: 688387 | G153: 148 | H153: 41736 | I153: 51652 | K153: 148 | L153: 73112 | M153: 78287 | O153: 148 | P153: 104340 | Q153: 129352
B154: 149 | C154: 646511 | D154: 692726 | E154: 692726 | G154: 149 | H154: 42018 | I154: 52001 | K154: 149 | L154: 73606 | M154: 78781 | O154: 149 | P154: 105045 | Q154: 130226
B155: 150 | C155: 650850 | D155: 697065 | E155: 697065 | G155: 150 | H155: 42300 | I155: 52350 | K155: 150 | L155: 74100 | M155: 79275 | O155: 150 | P155: 105750 | Q155: 131100
B156: 151 | C156: 655189 | D156: 701404 | E156: 701404 | G156: 151 | H156: 42582 | I156: 52699 | K156: 151 | L156: 74594 | M156: 79769 | O156: 151 | P156: 106455 | Q156: 131974
B157: 152 | C157: 659528 | D157: 705743 | E157: 705743 | G157: 152 | H157: 42864 | I157: 53048 | K157: 152 | L157: 75088 | M157: 80263 | O157: 152 | P157: 107160 | Q157: 132848
B158: 153 | C158: 663867 | D158: 710082 | E158: 710082 | G158: 153 | H158: 43146 | I158: 53397 | K158: 153 | L158: 75582 | M158: 80757 | O158: 153 | P158: 107865 | Q158: 133722
B159: 154 | C159: 668206 | D159: 714421 | E159: 714421 | G159: 154 | H159: 43428 | I159: 53746 | K159: 154 | L159: 76076 | M159: 81251 | O159: 154 | P159: 108570 | Q159: 134596
B160: 155 | C160: 672545 | D160: 718760 | E160: 718760 | G160: 155 | H160: 43710 | I160: 54095 | K160: 155 | L160: 76570 | M160: 81745 | O160: 155 | P160: 109275 | Q160: 135470
B161: 156 | C161: 676884 | D161: 723099 | E161: 723099 | G161: 156 | H161: 43992 | I161: 54444 | K161: 156 | L161: 77064 | M161: 82239 | O161: 156 | P161: 109980 | Q161: 136344
B162: 157 | C162: 681223 | D162: 727438 | E162: 727438 | G162: 157 | H162: 44274 | I162: 54793 | K162: 157 | L162: 77558 | M162: 82733 | O162: 157 | P162: 110685 | Q162: 137218
B163: 158 | C163: 685562 | D163: 731777 | E163: 731777 | G163: 158 | H163: 44556 | I163: 55142 | K163: 158 | L163: 78052 | M163: 83227 | O163: 158 | P163: 111390 | Q163: 138092
B164: 159 | C164: 689901 | D164: 736116 | E164: 736116 | G164: 159 | H164: 44838 | I164: 55491 | K164: 159 | L164: 78546 | M164: 83721 | O164: 159 | P164: 112095 | Q164: 138966
B165: 160 | C165: 694240 | D165: 740455 | E165: 740455 | G165: 160 | H165: 45120 | I165: 55840 | K165: 160 | L165: 79040 | M165: 84215 | O165: 160 | P165: 112800 | Q165: 139840
B166: 161 | C166: 698579 | D166: 744794 | E166: 744794 | G166: 161 | H166: 45402 | I166: 56189 | K166: 161 | L166: 79534 | M166: 84709 | O166: 161 | P166: 113505 | Q166: 140714
B167: 162 | C167: 702918 | D167: 749133 | E167: 749133 | G167: 162 | H167: 45684 | I167: 56538 | K167: 162 | L167: 80028 | M167: 85203 | O167: 162 | P167: =$O167*P$5 -> 114210 | Q167: 141588
B168: 163 | C168: 707257 | D168: 753472 | E168: 753472 | G168: 163 | H168: 45966 | I168: 56887 | K168: 163 | L168: 80522 | M168: 85697 | O168: 163 | P168: 114915 | Q168: 142462
B169: 164 | C169: 711596 | D169: 757811 | E169: 757811 | G169: 164 | H169: 46248 | I169: 57236 | K169: 164 | L169: 81016 | M169: 86191 | O169: 164 | P169: 115620 | Q169: 143336
B170: 165 | C170: 715935 | D170: 762150 | E170: 762150 | G170: 165 | H170: 46530 | I170: 57585 | K170: 165 | L170: 81510 | M170: 86685 | O170: 165 | P170: 116325 | Q170: 144210
B171: 166 | C171: 720274 | D171: 766489 | E171: 766489 | G171: 166 | H171: 46812 | I171: 57934 | K171: 166 | L171: 82004 | M171: 87179 | O171: 166 | P171: 117030 | Q171: 145084
B172: 167 | C172: 724613 | D172: 770828 | E172: 770828 | G172: 167 | H172: 47094 | I172: 58283 | K172: 167 | L172: 82498 | M172: 87673 | O172: 167 | P172: 117735 | Q172: 145958
B173: 168 | C173: 728952 | D173: 775167 | E173: 775167 | G173: 168 | H173: 47376 | I173: 58632 | K173: 168 | L173: 82992 | M173: 88167 | O173: 168 | P173: 118440 | Q173: 146832
B174: 169 | C174: 733291 | D174: 779506 | E174: 779506 | G174: 169 | H174: 47658 | I174: 58981 | K174: 169 | L174: 83486 | M174: 88661 | O174: 169 | P174: 119145 | Q174: 147706
B175: 170 | C175: 737630 | D175: 783845 | E175: 783845 | G175: 170 | H175: 47940 | I175: 59330 | K175: 170 | L175: 83980 | M175: 89155 | O175: 170 | P175: 119850 | Q175: 148580
B176: 171 | C176: 741969 | D176: 788184 | E176: 788184 | G176: 171 | H176: 48222 | I176: 59679 | K176: 171 | L176: 84474 | M176: 89649 | O176: 171 | P176: 120555 | Q176: 149454
B177: 172 | C177: 746308 | D177: 792523 | E177: 792523 | G177: 172 | H177: 48504 | I177: 60028 | K177: 172 | L177: 84968 | M177: 90143 | O177: 172 | P177: 121260 | Q177: 150328
B178: 173 | C178: 750647 | D178: 796862 | E178: 796862 | G178: 173 | H178: 48786 | I178: 60377 | K178: 173 | L178: 85462 | M178: 90637 | O178: 173 | P178: 121965 | Q178: 151202
B179: 174 | C179: 754986 | D179: =$D$50+($B179-45)*C$5 -> 801201 | E179: 801201 | G179: 174 | H179: 49068 | I179: 60726 | K179: 174 | L179: 85956 | M179: =$M$50+($K179-45)*L$5 -> 91131 | O179: 174 | P179: 122670 | Q179: 152076
B180: 175 | C180: 759325 | D180: 805540 | E180: =$D180 -> 805540 | G180: 175 | H180: 49350 | I180: 61075 | K180: 175 | L180: =$K180*L$5 -> 86450 | M180: 91625 | O180: 175 | P180: 123375 | Q180: 152950
B181: 176 | C181: 763664 | D181: 809879 | E181: 809879 | G181: 176 | H181: 49632 | I181: 61424 | K181: 176 | L181: 86944 | M181: 92119 | O181: 176 | P181: 124080 | Q181: 153824
B182: 177 | C182: 768003 | D182: 814218 | E182: 814218 | G182: 177 | H182: 49914 | I182: 61773 | K182: 177 | L182: 87438 | M182: 92613 | O182: 177 | P182: 124785 | Q182: 154698
B183: 178 | C183: 772342 | D183: 818557 | E183: 818557 | G183: 178 | H183: 50196 | I183: 62122 | K183: 178 | L183: 87932 | M183: 93107 | O183: 178 | P183: 125490 | Q183: 155572
B184: 179 | C184: 776681 | D184: 822896 | E184: 822896 | G184: 179 | H184: 50478 | I184: 62471 | K184: 179 | L184: 88426 | M184: 93601 | O184: 179 | P184: 126195 | Q184: 156446
B185: 180 | C185: 781020 | D185: 827235 | E185: 827235 | G185: 180 | H185: 50760 | I185: 62820 | K185: 180 | L185: 88920 | M185: 94095 | O185: 180 | P185: 126900 | Q185: 157320
B186: 181 | C186: 785359 | D186: 831574 | E186: 831574 | G186: 181 | H186: 51042 | I186: 63169 | K186: 181 | L186: 89414 | M186: 94589 | O186: 181 | P186: 127605 | Q186: 158194
B187: 182 | C187: 789698 | D187: 835913 | E187: 835913 | G187: 182 | H187: 51324 | I187: 63518 | K187: 182 | L187: 89908 | M187: 95083 | O187: 182 | P187: 128310 | Q187: 159068
B188: 183 | C188: 794037 | D188: 840252 | E188: 840252 | G188: 183 | H188: 51606 | I188: 63867 | K188: 183 | L188: 90402 | M188: 95577 | O188: 183 | P188: 129015 | Q188: 159942
B189: 184 | C189: 798376 | D189: 844591 | E189: 844591 | G189: 184 | H189: 51888 | I189: 64216 | K189: 184 | L189: 90896 | M189: 96071 | O189: 184 | P189: 129720 | Q189: 160816
B190: 185 | C190: 802715 | D190: 848930 | E190: 848930 | G190: 185 | H190: 52170 | I190: 64565 | K190: 185 | L190: 91390 | M190: 96565 | O190: 185 | P190: 130425 | Q190: 161690
B191: 186 | C191: 807054 | D191: 853269 | E191: 853269 | G191: 186 | H191: 52452 | I191: 64914 | K191: 186 | L191: 91884 | M191: 97059 | O191: 186 | P191: 131130 | Q191: 162564
B192: 187 | C192: 811393 | D192: 857608 | E192: 857608 | G192: 187 | H192: 52734 | I192: 65263 | K192: 187 | L192: 92378 | M192: 97553 | O192: 187 | P192: 131835 | Q192: 163438
B193: 188 | C193: 815732 | D193: 861947 | E193: 861947 | G193: 188 | H193: 53016 | I193: 65612 | K193: 188 | L193: 92872 | M193: 98047 | O193: 188 | P193: 132540 | Q193: 164312
B194: 189 | C194: 820071 | D194: 866286 | E194: 866286 | G194: 189 | H194: 53298 | I194: 65961 | K194: 189 | L194: 93366 | M194: 98541 | O194: 189 | P194: 133245 | Q194: 165186
B195: 190 | C195: 824410 | D195: 870625 | E195: 870625 | G195: 190 | H195: 53580 | I195: 66310 | K195: 190 | L195: 93860 | M195: 99035 | O195: 190 | P195: 133950 | Q195: 166060
B196: 191 | C196: 828749 | D196: 874964 | E196: 874964 | G196: 191 | H196: 53862 | I196: 66659 | K196: 191 | L196: 94354 | M196: 99529 | O196: 191 | P196: 134655 | Q196: 166934
B197: 192 | C197: 833088 | D197: 879303 | E197: 879303 | G197: 192 | H197: 54144 | I197: 67008 | K197: 192 | L197: 94848 | M197: 100023 | O197: 192 | P197: 135360 | Q197: 167808
B198: 193 | C198: 837427 | D198: 883642 | E198: 883642 | G198: 193 | H198: 54426 | I198: 67357 | K198: 193 | L198: 95342 | M198: 100517 | O198: 193 | P198: 136065 | Q198: 168682
B199: 194 | C199: =$B199*C$5 -> 841766 | D199: 887981 | E199: 887981 | G199: 194 | H199: =$G199*H$5 -> 54708 | I199: 67706 | K199: 194 | L199: 95836 | M199: 101011 | O199: 194 | P199: 136770 | Q199: 169556
B200: 195 | C200: 846105 | D200: 892320 | E200: 892320 | G200: 195 | H200: 54990 | I200: 68055 | K200: 195 | L200: 96330 | M200: 101505 | O200: 195 | P200: 137475 | Q200: 170430
B201: 196 | C201: 850444 | D201: 896659 | E201: 896659 | G201: 196 | H201: 55272 | I201: 68404 | K201: 196 | L201: 96824 | M201: 101999 | O201: 196 | P201: 138180 | Q201: 171304
B202: 197 | C202: 854783 | D202: 900998 | E202: 900998 | G202: 197 | H202: 55554 | I202: 68753 | K202: 197 | L202: 97318 | M202: 102493 | O202: 197 | P202: 138885 | Q202: 172178
... 3 more rows

Sheet 2025 Funding Rates
B2: 2025 Kindergarten Funding rates
B4: Kindergarten providers can find which funding rates table is applicable to them by identifying whether they have
B5: opted in to Free Kinder or not and whether they operate under either of the Victorian Early Childhood Teachers’
B6: and Educators’ Agreement 2020 (VECTEA) and the Early Education Employees’ Agreement 2020 (EEEA) or not.
B8: Table 1 - Services operating under the Early Childhood Enterprise Agreements and do not opt in to Free Kinder | I8: T1
B9: Table 2 - Services not operating under the Early Childhood Enterprise Agreements and do not opt in to Free Kinder | I9: T2
B10: Table 3 - Services operating under the Early Childhood Enterprise Agreements and opt-in to Free Kinder | I10: T3
B11: Table 4 - Services not operating under the Early Childhood Enterprise Agreements and opt-in to Free Kinder | I11: T4
I13: Teacher Level Dropdown
I14: L 2.5 Supplement
I15: L 3.1 Supplement
I16: L 3.2-3.6 Supplement
I17: N/A
B20: Table 1 - Services operating under the Early Childhood Enterprise Agreements and do not opt in to Free Kinder
B22: 2025
C25: 2025
B26: Per capita - EA services*
B27: Standard per capita - EA services | C27: 4339
B28: Rural per capita - EA services | C28: 5366
B29: Kindergarten Fee Subsidy
B30: Kindergarten Fee Subsidy | C30: 2135
B31: Early Start Kindergarten and Access to Early Learning**
B32: ESK Standard | C32: 6966
B33: ESK Rural | C33: 7993
B34: ESK Extension (equivalent to KFS) | C34: 2135
B35: Ratio Supplement
B36: Ratio Supplement - Standard | C36: 571
B37: Ratio Supplement - KFS | C37: 0
B38: Ratio Supplement - ESK*** | C38: 571
B39: Early Childhood Teacher Supplement
B40: Standard rate - Level 2.5 | C40: 282
B41: Standard rate - Level 3.1 | C41: 494
B42: Rural rate - Level 2.5 | C42: 349
B43: Rural rate - Level 3.1 | C43: 609
B44: Standard rate - Level 3.2-3.6 | C44: 705
B45: Rural rate - Level 3.2-3.6 | C45: 874
B46: Pre-Purchased Places
B47: Pre-Purchased Places | C47: 6966
B49: *Services that are signatories to the Early Childhood Enterprise Agreements are services that will sign the new Victorian
B50: Early Childhood Teachers’ and Educators’ Agreement (VECTEA) or the Early Education Employees’ Agreement (EEEA).
B52: **ESK Standard and Rural enrolments will be funded at the same rate
B55: ***The ESK ratio supplement will be paid at a rate equivalent to the Standard Ratio Supplement as a proportion of the ESK
B56: Ratio Supplement is included in the Free Kinder funding rate.
B58: The same rates apply to funded three-year-old and four-year-old enrolments in programs of 15 hours per week. For
B59: services in funded Three-Year-Old Kindergarten roll-out areas and delivering a funded Three-Year-Old Kindergarten
B60: program between five and 15 hours, child level funding will be provided on a prorated basis. For example, a kindergarten
B61: delivering a ten hour Three-Year-old Kindergarten program will receive two thirds of the applicable rate of funding
B62: available.
B64: Table 2 - Services not operating under the Early Childhood Enterprise Agreements and do not opt in to Free Kinder
B66: 2025
C69: 2025
B70: Per capita - Non-EA services
B71: Standard per capita - non-EA services | C71: 3831
B72: Rural per capita - non-EA services | C72: 4737
B73: Independent schools Standard | C73: 3831
B74: Independent schools Type 1 | C74: 672
B75: Independent schools Type 2 | C75: 2181
B76: Kindergarten Fee Subsidy
B77: Kindergarten Fee Subsidy | C77: 2627
B78: Early Start Kindergarten and Access to Early Learning*
B79: ESK Standard | C79: 6966
B80: ESK Rural | C80: 7993
B81: ESK Extension (equivalent to KFS) | C81: 2135
B82: Ratio Supplement
B83: Ratio Supplement - Standard | C83: 571
B84: Ratio Supplement - KFS | C84: 0
B85: Ratio Supplement - ESK** | C85: 571
B86: Pre-Purchased Places***
B87: Pre-Purchased Places | C87: 6966
B89: *ESK Standard and Rural enrolments will be funded at the same rate
B92: ** The ESK ratio supplement will be paid at a rate equivalent to the Standard Ratio Supplement as a proportion of the ESK
B95: ***All PPP enrolments will be funded at the EA rate.
B97: The same rates apply to funded three-year-old and four-year-old enrolments in programs of 15 hours per week. For
B98: services in funded Three-Year-Old Kindergarten roll-out areas and delivering a funded Three-Year-Old Kindergarten
B99: program between five and 15 hours, child level funding will be provided on a prorated basis. For example, a kindergarten
B100: delivering a ten hour Three-Year-old Kindergarten program will receive two thirds of the applicable rate of funding
B101: available.
B103: Table 3 - Services operating under the Early Childhood Enterprise Agreements and opt-in to Free Kinder
B105: 2025
C108: 2025
B109: Per capita - EA services*
B110: Standard per capita - EA services | C110: 4339
B111: Rural per capita - EA services | C111: 5366
B112: Free Kindergarten Funding
B113: Free Kindergarten Funding | C113: 2627
B114: Early Start Kindergarten and Access to Early Learning**
B115: ESK Standard | C115: =$C$32 -> 6966
B116: ESK Rural | C116: =$C$33 -> 7993
B117: ESK Extension (equivalent to KFS) | C117: 0
B118: Ratio Supplement
B119: Ratio Supplement - Standard | C119: =$C$36 -> 571
B120: Ratio Supplement - ESK*** | C120: =$C$38 -> 571
B121: Early Childhood Teacher Supplement
B122: Standard rate - Level 2.5 | C122: =$C$40 -> 282
B123: Standard rate - Level 3.1 | C123: 494
B124: Rural rate - Level 2.5 | C124: =$C$42 -> 349
B125: Rural rate - Level 3.1 | C125: =$C$43 -> 609
B126: Standard rate - Level 3.2-3.6 | C126: =$C$44 -> 705
B127: Rural rate - Level 3.2-3.6 | C127: =$C$45 -> 874
B128: Pre-Purchased Places
B129: Pre-Purchased Places | C129: =$C$47 -> 6966
B131: *Services that are signatories to the Early Childhood Enterprise Agreements are services that will sign the new Victorian
B132: Early Childhood Teachers’ and Educators’ Agreement (VECTEA) or the Early Education Employees’ Agreement (EEEA).
B134: **ESK Standard and Rural enrolments will be funded at the same rate
B137: ***The ESK ratio supplement will be paid at a rate equivalent to the Standard Ratio Supplement as a proportion of the ESK
B138: Ratio Supplement is included in the Free Kinder funding rate.
B140: The same rates apply to funded three-year-old and four-year-old enrolments in programs of 15 hours per week. For
B141: services in funded Three-Year-Old Kindergarten roll-out areas and delivering a funded Three-Year-Old Kindergarten
B142: program between five and 15 hours, child level funding will be provided on a prorated basis. For example, a kindergarten
B143: delivering a ten hour Three-Year-old Kindergarten program will receive two thirds of the applicable rate of funding
B144: available.
B146: Table 4 - Services not operating under the Early Childhood Enterprise Agreements and opt-in to Free Kinder
B148: 2025
C151: 2025
B152: Per capita - Non-EA services
B153: Standard per capita - non-EA services | C153: =$C$71 -> 3831
B154: Rural per capita - non-EA services | C154: =$C$72 -> 4737
B155: Independent schools Standard | C155: =$C$73 -> 3831
B156: Independent schools Type 1 | C156: =$C$74 -> 672
B157: Independent schools Type 2 | C157: =$C$75 -> 2181
B158: Free Kindergarten Funding
B159: Free Kindergarten Funding | C159: 2627
B160: Early Start Kindergarten and Access to Early Learning*
B161: ESK Standard | C161: =$C$79 -> 6966
B162: ESK Rural | C162: =$C$80 -> 7993
B163: ESK Extension (equivalent to KFS) | C163: 0
B164: Ratio Supplement
B165: Ratio Supplement - Standard | C165: =$C$83 -> 571
B166: Ratio Supplement - ESK** | C166: =$C$85 -> 571
B167: Pre-Purchased Places***
B168: Pre-Purchased Places | C168: =$C$87 -> 6966
B170: *ESK Standard and Rural enrolments will be funded at the same rate
B173: ** The ESK ratio supplement will be paid at a rate equivalent to the Standard Ratio Supplement as a proportion of the ESK
B176: ***All PPP enrolments will be funded at the EA rate.
B178: The same rates apply to funded three-year-old and four-year-old enrolments in programs of 15 hours per week. For
B179: services in funded Three-Year-Old Kindergarten roll-out areas and delivering a funded Three-Year-Old Kindergarten
B180: program between five and 15 hours, child level funding will be provided on a prorated basis. For example, a kindergarten
B181: delivering a ten hour Three-Year-old Kindergarten program will receive two thirds of the applicable rate of funding
B182: available.
B184: Table 5 - Early Years Management
C186: Jan-Dec
C187: 2025
B188: Annual grant: sessional kindergarten services | C188: 18963
B189: Annual grant: long day care services | C189: 11751
B190: Additional Support loading (for sessional services in rural and/or disadvantaged services) | C190: 3782
B191: Start-up grant (100% of annual grant depending on service type) | C191: $18,963 / $11,751
B192: Transition grant (100% of annual grant) | C192: $18,963/ $11,751
B193: New provider grant (for newly established and | C193: up to $78,797
B194: approved Early Years Management organisations)
